Workbook

Sheet Introduction

Sheet Basic Demonstration
D1: Instructions at www.edbodmer.com | H1: Questions: e-mail edwardbodmer@gmail.com
C2: ROIC | Q2: It is a good idea to use "This Worksheet"
B3: 2010 | C3: 0.3 | F3: Step 1: ALT, F8 -- Goto Developer Tab and Open the FUNCTIONS Macro
B4: 2014 | C4: 0.06 | F4: Step 2: Select (CNTL A) Entire Macro Module (Functions)
B5: 2018 | C5: 0.1 | F5: Step 3: Copy (CNTL C) Entire Macro Module (Functions)
B6: 2022 | C6: 0.08 | F6: Step 4: Open a Macro in Your Model (F8 and type test or something)
B7: 2026 | C7: 0.09 | F7: Step 5: Copy to your New Model with CNTL V
B8: 2030 | C8: 0.12 | F8: Note: If numbers go to zero or negative, use interpolate_linear
C11: Year | D11: 2010 | E11: 2011 | F11: 2012 | G11: 2013 | H11: 2014 | I11: 2015 | J11: 2016 | K11: 2017 | L11: 2018 | M11: 2019 | N11: 2020 | O11: 2021 | P11: 2022 | Q11: 2023 | R11: 2024 | S11: 2025 | T11: 2026 | U11: 2027 | V11: 2028 | W11: 2029 | X11: 2030 | Y11: 2030
C13: ROIC | D13: =LOOKUP(D11,$B:$B,$C:$C) -> 0.3 | E13: 0.3 | F13: 0.3 | G13: 0.3 | H13: 0.06 | I13: 0.06 | J13: 0.06 | K13: 0.06 | L13: 0.1 | M13: 0.1 | N13: 0.1 | O13: 0.1 | P13: 0.08 | Q13: 0.08 | R13: 0.08 | S13: 0.08 | T13: 0.09 | U13: 0.09 | V13: 0.09 | W13: 0.09 | X13: 0.12 | Y13: 0.12
C15: Basic | D15: =basic_look_up(D11,$B$3:$B$8,$C$3:$C$8) -> 0.3 | E15: 0.3 | F15: 0.3 | G15: 0.3 | H15: 0.06 | I15: 0.06 | J15: 0.06 | K15: =basic_look_up(K11,$B$3:$B$8,$C$3:$C$8) -> 0.06 | L15: 0.1 | M15: 0.1 | N15: 0.1 | O15: 0.1 | P15: 0.08 | Q15: 0.08 | R15: 0.08 | S15: 0.08 | T15: 0.12 | U15: 0.12 | V15: 0.12 | W15: 0.12 | X15: 0.12 | Y15: =basic_look_up(Y11,$B$3:$B$8,$C$3:$C$8) -> 0.12
C17: Long | D17: =long_look_up(D11,$B:$B,$C:$C) -> 0.3 | E17: 0.3 | F17: 0.3 | G17: 0.3 | H17: 0.06 | I17: 0.06 | J17: 0.06 | K17: 0.06 | L17: 0.1 | M17: 0.1 | N17: 0.1 | O17: 0.1 | P17: 0.08 | Q17: 0.08 | R17: 0.08 | S17: 0.08 | T17: 0.09 | U17: 0.09 | V17: 0.09 | W17: 0.09 | X17: 0.12 | Y17: 0.12
C19: Interpolate look up | D19: =interpolate_look_up(D11,$B:$B,$C:$C) -> 0.3 | E19: =interpolate_look_up(E11,$B:$B,$C:$C) -> 0.2006220915 | F19: 0.1341640786 | G19: 0.08972092687 | H19: 0.06 | I19: 0.06817316199 | J19: 0.07745966692 | K19: 0.08801117368 | L19: 0.1 | M19: 0.0945741609 | N19: 0.0894427191 | O19: 0.08458970108 | P19: 0.08 | Q19: 0.08239068576 | R19: 0.08485281374 | S19: 0.08738851891 | T19: 0.09 | U19: 0.09671129386 | V19: 0.1039230485 | W19: 0.1116725831 | X19: 0.12 | Y19: 0.12
C21: Linear Interpolate | D21: =interpolate_look_up_linear(D11,$B$3:$B$8,$C$3:$C$8) -> 0.3 | E21: =interpolate_look_up_linear(E11,$B$3:$B$8,$C$3:$C$8) -> 0.24 | F21: 0.18 | G21: 0.12 | H21: 0.06 | I21: 0.07 | J21: 0.08 | K21: 0.09 | L21: 0.1 | M21: 0.095 | N21: 0.09 | O21: 0.085 | P21: 0.08 | Q21: 0.0825 | R21: 0.085 | S21: 0.0875 | T21: 0.09 | U21: 0.0975 | V21: 0.105 | W21: 0.1125 | X21: 0.12 | Y21: 0.12
B23: Demonstration of how it works
D24: =D15 -> 0.3
D25: =H15 -> 0.06
B26: First compute Growth
C27: Cols -1 | D27: =COLUMN(H13)-COLUMN(D13) -> 4
C28: Growth | D28: =(D25/D24)^(1/D27)-1 -> -0.331259695 | E28: =D28 -> -0.331259695 | F28: =E28 -> -0.331259695 | G28: =F28 -> -0.331259695 | H28: =G28 -> -0.331259695 | K28: =show_formula(K19) -> =interpolate_look_up(K11,$B:$B,$C:$C)
B30: Value is Base plus Growth
C31: Value | D31: =D17 -> 0.3 | E31: =D31*(1+E28) -> 0.2006220915 | F31: =E31*(1+F28) -> 0.1341640786 | G31: 0.08972092687 | H31: 0.06
C33: Ratio (named in function) | D33: =$D$25/$D$24 -> 0.2 | E33: =$C$4/$C$3 -> 0.2 | F33: 0.2 | G33: 0.2 | H33: 0.2
C34: Numerator - number from 1 | E34: =E11-$B$3 -> 1 | F34: =F11-$B$3 -> 2 | G34: 3 | H34: 4
C35: Total (Cols - 1) | E35: =($B$4-$B$3) -> 4 | F35: =($B$4-$B$3) -> 4 | G35: 4 | H35: 4
C36: Factor | E36: =E33^(E34/E35) -> 0.668740305 | F36: =F33^(F34/F35) -> 0.4472135955 | G36: 0.2990697562 | H36: 0.2
C38: Value - Initial x Factor | D38: =D31 -> 0.3 | E38: =$D$38*E36 -> 0.2006220915 | F38: =$D$38*F36 -> 0.1341640786 | G38: 0.08972092687 | H38: 0.06
C40: Interpolate Proof | D40: =interpolate_look_up(D11,$B:$B,$C:$C) -> 0.3 | E40: =interpolate_look_up(E11,$B:$B,$C:$C) -> 0.2006220915 | F40: =interpolate_look_up(F11,$B:$B,$C:$C) -> 0.1341640786 | G40: =interpolate_look_up(G11,$B:$B,$C:$C) -> 0.08972092687 | H40: =interpolate_look_up(H11,$B:$B,$C:$C) -> 0.06
A44: Simple Example
D45: 100 | H45: 130
C47: Ratio | D47: =($H$45/$D$45) -> 1.3 | E47: =($H$45/$D$45) -> 1.3 | F47: 1.3 | G47: 1.3 | H47: 1.3
C49: Growth | D49: =D47^(1/4)-1 -> 0.06778997237 | E49: =E47^(1/4)-1 -> 0.06778997237 | F49: 0.06778997237 | G49: 0.06778997237 | H49: 0.06778997237
C50: Growth Value | D50: 100 | E50: =D50*(1+E49) -> 106.7789972 | F50: =E50*(1+F49) -> 114.0175425 | G50: =F50*(1+G49) -> 121.7467886 | H50: =G50*(1+H49) -> 130
C52: Compound Growth | D52: 1 | E52: =D52*(1+E49) -> 1.067789972 | F52: =E52*(1+F49) -> 1.140175425 | G52: 1.217467886 | H52: 1.3
C54: Numerator | D54: 0 | E54: =D54+1 -> 1 | F54: =E54+1 -> 2 | G54: 3 | H54: 4
C55: Denominator | D55: =$H$54-$D$54 -> 4 | E55: =$H$54-$D$54 -> 4 | F55: 4 | G55: 4 | H55: 4
C57: Combined with Power | D57: =D52 -> 1 | E57: =E47^(E54/E55) -> 1.067789972 | F57: =F47^(F54/F55) -> 1.140175425 | G57: 1.217467886 | H57: 1.3
C59: Compound Value | D59: =D50 -> 100 | E59: =$D$59*E57 -> 106.7789972 | F59: =$D$59*F57 -> 114.0175425 | G59: 121.7467886 | H59: 130

Sheet Demonstration 3
J1: Instructions at www.edbodmer.com | N1: Questions: e-mail edwardbodmer@gmail.com
C2: Date | D2: Discount Rate
B3: Development | C3: 2016-01-01 | D3: 0.2
B4: FC | C4: =EDATE(C3,15) -> 2017-04-01 | D4: 0.15
B5: COD | C5: =EDATE(C4,13) -> 2018-05-01 | D5: 0.12
B6: History | C6: =EDATE(C5,36) -> 2021-05-01 | D6: 0.08
B7: Death | C7: =EDATE(C5,25*12) -> 2043-05-01 | D7: =D6 -> 0.08
G9: 1 | H9: 2 | I9: 3 | J9: 4 | K9: 5 | L9: 6 | M9: 7 | N9: 8 | O9: 9 | P9: 10 | Q9: 11 | R9: 12 | S9: 13 | T9: 14 | U9: 15 | V9: 16 | W9: 17 | X9: 18 | Y9: 19 | Z9: 20 | AA9: 21 | AB9: 22 | AC9: 23 | AD9: 24 | AE9: 25 | AF9: 26 | AG9: 27 | AH9: 28 | AI9: 29 | AJ9: 30 | AK9: 31 | AL9: 32 | AM9: 33 | AN9: 34 | AO9: 35 | AP9: 36 | AQ9: 37 | AR9: 38 | AS9: 39 | AT9: 40 | AU9: 41 | AV9: 42 | AW9: 43 | AX9: 44 | AY9: 45 | AZ9: 46 | BA9: 47 | BB9: 48 | BC9: 49 | BD9: 50 | BE9: 51 | BF9: 52 | BG9: 53 | BH9: 54 | BI9: 55 | BJ9: 56 | BK9: 57 | BL9: 58 | BM9: 59 | BN9: 60 | BO9: 61 | BP9: 62 | BQ9: 63 | BR9: 64 | BS9: 65 | BT9: 66 | BU9: 67 | BV9: 68 | BW9: 69 | BX9: 70 | BY9: 71 | BZ9: 72 | CA9: 73 | CB9: 74 | CC9: 75 | CD9: 76 | CE9: 77 | CF9: 78 | CG9: 79 | CH9: 80 | CI9: 81 | CJ9: 82 | CK9: 83 | CL9: 84 | CM9: 85 | CN9: 86 | CO9: 87 | CP9: 88 | CQ9: 89 | CR9: 90 | CS9: 91 | CT9: 92 | CU9: 93 | CV9: 94 | CW9: 95 | CX9: 96 | CY9: 97 | CZ9: 98 | DA9: 99 | DB9: 100 | DC9: 101 | DD9: 102 | DE9: 103 | DF9: 104 | DG9: 105 | DH9: 106 | DI9: 107 | DJ9: 108 | DK9: 109 | DL9: 110 | DM9: 111 | DN9: 112 | DO9: 113 | DP9: 114 | DQ9: 115 | DR9: 116 | DS9: 117 | DT9: 118 | DU9: 119 | DV9: 120 | DW9: 121 | DX9: 122 | DY9: 123 | DZ9: 124 | EA9: 125 | EB9: 126 | EC9: 127 | ED9: 128 | EE9: 129 | EF9: 130 | EG9: 131 | EH9: 132 | EI9: 133 | EJ9: 134 | EK9: 135 | EL9: 136 | EM9: 137 | EN9: 138 | EO9: 139 | EP9: 140 | EQ9: 141 | ER9: 142 | ES9: 143 | ET9: 144 | EU9: 145 | EV9: 146 | EW9: 147 | EX9: 148 | EY9: 149 | EZ9: 150 | FA9: 151 | FB9: 152 | FC9: 153 | FD9: 154 | FE9: 155 | FF9: 156 | FG9: 157 | FH9: 158 | FI9: 159 | FJ9: 160 | FK9: 161 | FL9: 162 | FM9: 163 | FN9: 164 | FO9: 165 | FP9: 166 | FQ9: 167 | FR9: 168 | FS9: 169 | FT9: 170 | FU9: 171 | FV9: 172 | FW9: 173 | FX9: 174 | FY9: 175 | FZ9: 176 | GA9: 177 | GB9: 178 | GC9: 179 | GD9: 180 | GE9: 181 | GF9: 182 | GG9: 183 | GH9: 184 | GI9: 185 | GJ9: 186 | GK9: 187 | GL9: 188 | GM9: 189 | GN9: 190 | GO9: 191 | GP9: 192 | GQ9: 193 | GR9: 194 | GS9: 195 | GT9: 196 | GU9: 197 | GV9: 198 | GW9: 199 | GX9: 200 | GY9: 201 | GZ9: 202 | HA9: 203 | HB9: 204 | HC9: 205 | HD9: 206 | HE9: 207 | HF9: 208 | HG9: 209 | HH9: 210 | HI9: 211 | HJ9: 212 | HK9: 213 | HL9: 214 | HM9: 215 | HN9: 216 | HO9: 217 | HP9: 218 | HQ9: 219 | HR9: 220 | HS9: 221 | HT9: 222 | HU9: 223 | HV9: 224 | HW9: 225 | HX9: 226 | HY9: 227 | HZ9: 228 | IA9: 229 | IB9: 230 | IC9: 231 | ID9: 232 | IE9: 233 | IF9: 234 | IG9: 235 | IH9: 236 | II9: 237 | IJ9: 238 | IK9: 239 | IL9: 240 | IM9: 241 | IN9: 242 | IO9: 243 | IP9: 244 | IQ9: 245 | IR9: 246 | IS9: 247 | IT9: 248 | IU9: 249 | IV9: 250 | IW9: 251 | IX9: 252 | IY9: 253 | IZ9: 254 | JA9: 255 | JB9: 256 | JC9: 257 | JD9: 258 | JE9: 259 | JF9: 260 | JG9: 261 | JH9: 262 | JI9: 263 | JJ9: 264 | JK9: 265 | JL9: 266 | JM9: 267 | JN9: 268 | JO9: 269 | JP9: 270 | JQ9: 271 | JR9: 272 | JS9: 273 | JT9: 274 | JU9: 275 | JV9: 276 | JW9: 277 | JX9: 278 | JY9: 279 | JZ9: 280 | KA9: 281 | KB9: 282 | KC9: 283 | KD9: 284 | KE9: 285 | KF9: 286 | KG9: 287 | KH9: 288 | KI9: 289 | KJ9: 290 | KK9: 291 | KL9: 292 | KM9: 293 | KN9: 294 | KO9: 295 | KP9: 296 | KQ9: 297 | KR9: 298 | KS9: 299 | KT9: 300
B10: Timeline | G10: =C3 -> 2016-01-01 | H10: =EDATE(G10,1) -> 2016-02-01 | I10: =EDATE(H10,1) -> 2016-03-01 | J10: 2016-04-01 | K10: 2016-05-01 | L10: 2016-06-01 | M10: 2016-07-01 | N10: 2016-08-01 | O10: 2016-09-01 | P10: 2016-10-01 | Q10: 2016-11-01 | R10: 2016-12-01 | S10: 2017-01-01 | T10: 2017-02-01 | U10: 2017-03-01 | V10: 2017-04-01 | W10: 2017-05-01 | X10: 2017-06-01 | Y10: 2017-07-01 | Z10: 2017-08-01 | AA10: 2017-09-01 | AB10: 2017-10-01 | AC10: 2017-11-01 | AD10: 2017-12-01 | AE10: 2018-01-01 | AF10: 2018-02-01 | AG10: 2018-03-01 | AH10: 2018-04-01 | AI10: 2018-05-01 | AJ10: 2018-06-01 | AK10: 2018-07-01 | AL10: 2018-08-01 | AM10: 2018-09-01 | AN10: 2018-10-01 | AO10: 2018-11-01 | AP10: 2018-12-01 | AQ10: 2019-01-01 | AR10: 2019-02-01 | AS10: 2019-03-01 | AT10: 2019-04-01 | AU10: 2019-05-01 | AV10: 2019-06-01 | AW10: 2019-07-01 | AX10: 2019-08-01 | AY10: 2019-09-01 | AZ10: 2019-10-01 | BA10: 2019-11-01 | BB10: 2019-12-01 | BC10: 2020-01-01 | BD10: 2020-02-01 | BE10: 2020-03-01 | BF10: 2020-04-01 | BG10: 2020-05-01 | BH10: 2020-06-01 | BI10: 2020-07-01 | BJ10: 2020-08-01 | BK10: 2020-09-01 | BL10: 2020-10-01 | BM10: 2020-11-01 | BN10: 2020-12-01 | BO10: 2021-01-01 | BP10: 2021-02-01 | BQ10: 2021-03-01 | BR10: 2021-04-01 | BS10: 2021-05-01 | BT10: 2021-06-01 | BU10: =EDATE(BT10,1) -> 2021-07-01 | BV10: 2021-08-01 | BW10: 2021-09-01 | BX10: 2021-10-01 | BY10: 2021-11-01 | BZ10: 2021-12-01 | CA10: 2022-01-01 | CB10: 2022-02-01 | CC10: 2022-03-01 | CD10: 2022-04-01 | CE10: 2022-05-01 | CF10: 2022-06-01 | CG10: 2022-07-01 | CH10: 2022-08-01 | CI10: 2022-09-01 | CJ10: 2022-10-01 | CK10: 2022-11-01 | CL10: 2022-12-01 | CM10: 2023-01-01 | CN10: 2023-02-01 | CO10: 2023-03-01 | CP10: 2023-04-01 | CQ10: 2023-05-01 | CR10: 2023-06-01 | CS10: 2023-07-01 | CT10: 2023-08-01 | CU10: 2023-09-01 | CV10: 2023-10-01 | CW10: 2023-11-01 | CX10: 2023-12-01 | CY10: 2024-01-01 | CZ10: 2024-02-01 | DA10: 2024-03-01 | DB10: 2024-04-01 | DC10: 2024-05-01 | DD10: 2024-06-01 | DE10: 2024-07-01 | DF10: 2024-08-01 | DG10: 2024-09-01 | DH10: 2024-10-01 | DI10: 2024-11-01 | DJ10: 2024-12-01 | DK10: 2025-01-01 | DL10: 2025-02-01 | DM10: 2025-03-01 | DN10: 2025-04-01 | DO10: 2025-05-01 | DP10: 2025-06-01 | DQ10: 2025-07-01 | DR10: 2025-08-01 | DS10: 2025-09-01 | DT10: 2025-10-01 | DU10: 2025-11-01 | DV10: 2025-12-01 | DW10: 2026-01-01 | DX10: 2026-02-01 | DY10: 2026-03-01 | DZ10: 2026-04-01 | EA10: 2026-05-01 | EB10: 2026-06-01 | EC10: 2026-07-01 | ED10: 2026-08-01 | EE10: 2026-09-01 | EF10: 2026-10-01 | EG10: =EDATE(EF10,1) -> 2026-11-01 | EH10: 2026-12-01 | EI10: 2027-01-01 | EJ10: 2027-02-01 | EK10: 2027-03-01 | EL10: 2027-04-01 | EM10: 2027-05-01 | EN10: 2027-06-01 | EO10: 2027-07-01 | EP10: 2027-08-01 | EQ10: 2027-09-01 | ER10: 2027-10-01 | ES10: 2027-11-01 | ET10: 2027-12-01 | EU10: 2028-01-01 | EV10: 2028-02-01 | EW10: 2028-03-01 | EX10: 2028-04-01 | EY10: 2028-05-01 | EZ10: 2028-06-01 | FA10: 2028-07-01 | FB10: 2028-08-01 | FC10: 2028-09-01 | FD10: 2028-10-01 | FE10: 2028-11-01 | FF10: 2028-12-01 | FG10: 2029-01-01 | FH10: 2029-02-01 | FI10: 2029-03-01 | FJ10: 2029-04-01 | FK10: 2029-05-01 | FL10: 2029-06-01 | FM10: 2029-07-01 | FN10: 2029-08-01 | FO10: 2029-09-01 | FP10: 2029-10-01 | FQ10: 2029-11-01 | FR10: 2029-12-01 | FS10: 2030-01-01 | FT10: 2030-02-01 | FU10: 2030-03-01 | FV10: 2030-04-01 | FW10: 2030-05-01 | FX10: 2030-06-01 | FY10: 2030-07-01 | FZ10: 2030-08-01 | GA10: 2030-09-01 | GB10: 2030-10-01 | GC10: 2030-11-01 | GD10: 2030-12-01 | GE10: 2031-01-01 | GF10: 2031-02-01 | GG10: 2031-03-01 | GH10: 2031-04-01 | GI10: 2031-05-01 | GJ10: 2031-06-01 | GK10: 2031-07-01 | GL10: 2031-08-01 | GM10: 2031-09-01 | GN10: 2031-10-01 | GO10: 2031-11-01 | GP10: 2031-12-01 | GQ10: 2032-01-01 | GR10: 2032-02-01 | GS10: =EDATE(GR10,1) -> 2032-03-01 | GT10: 2032-04-01 | GU10: 2032-05-01 | GV10: 2032-06-01 | GW10: 2032-07-01 | GX10: 2032-08-01 | GY10: 2032-09-01 | GZ10: 2032-10-01 | HA10: 2032-11-01 | HB10: 2032-12-01 | HC10: 2033-01-01 | HD10: 2033-02-01 | HE10: 2033-03-01 | HF10: 2033-04-01 | HG10: 2033-05-01 | HH10: 2033-06-01 | HI10: 2033-07-01 | HJ10: 2033-08-01 | HK10: 2033-09-01 | HL10: 2033-10-01 | HM10: 2033-11-01 | HN10: 2033-12-01 | HO10: 2034-01-01 | HP10: 2034-02-01 | HQ10: 2034-03-01 | HR10: 2034-04-01 | HS10: 2034-05-01 | HT10: 2034-06-01 | HU10: 2034-07-01 | HV10: 2034-08-01 | HW10: 2034-09-01 | HX10: 2034-10-01 | HY10: 2034-11-01 | HZ10: 2034-12-01 | IA10: 2035-01-01 | IB10: 2035-02-01 | IC10: 2035-03-01 | ID10: 2035-04-01 | IE10: 2035-05-01 | IF10: 2035-06-01 | IG10: 2035-07-01 | IH10: 2035-08-01 | II10: 2035-09-01 | IJ10: 2035-10-01 | IK10: 2035-11-01 | IL10: 2035-12-01 | IM10: 2036-01-01 | IN10: 2036-02-01 | IO10: 2036-03-01 | IP10: 2036-04-01 | IQ10: 2036-05-01 | IR10: 2036-06-01 | IS10: 2036-07-01 | IT10: 2036-08-01 | IU10: 2036-09-01 | IV10: 2036-10-01 | IW10: 2036-11-01 | IX10: 2036-12-01 | IY10: 2037-01-01 | IZ10: 2037-02-01 | JA10: 2037-03-01 | JB10: 2037-04-01 | JC10: 2037-05-01 | JD10: 2037-06-01 | JE10: =EDATE(JD10,1) -> 2037-07-01 | JF10: 2037-08-01 | JG10: 2037-09-01 | JH10: 2037-10-01 | JI10: 2037-11-01 | JJ10: 2037-12-01 | JK10: 2038-01-01 | JL10: 2038-02-01 | JM10: 2038-03-01 | JN10: 2038-04-01 | JO10: 2038-05-01 | JP10: 2038-06-01 | JQ10: 2038-07-01 | JR10: 2038-08-01 | JS10: 2038-09-01 | JT10: 2038-10-01 | JU10: 2038-11-01 | JV10: 2038-12-01 | JW10: 2039-01-01 | JX10: 2039-02-01 | JY10: 2039-03-01 | JZ10: 2039-04-01 | KA10: 2039-05-01 | KB10: 2039-06-01 | KC10: 2039-07-01 | KD10: 2039-08-01 | KE10: 2039-09-01 | KF10: 2039-10-01 | KG10: 2039-11-01 | KH10: 2039-12-01 | KI10: 2040-01-01 | KJ10: 2040-02-01 | KK10: 2040-03-01 | KL10: 2040-04-01 | KM10: 2040-05-01 | KN10: 2040-06-01 | KO10: 2040-07-01 | KP10: 2040-08-01 | KQ10: 2040-09-01 | KR10: 2040-10-01 | KS10: 2040-11-01 | KT10: 2040-12-01
B11: Development | E11: =C3 -> 2016-01-01 | F11: =C4 -> 2017-04-01 | G11: =AND(G$10>=$E11,G$10<$F11) -> TRUE | H11: TRUE | I11: TRUE | J11: TRUE | K11: TRUE | L11: TRUE | M11: TRUE | N11: TRUE | O11: TRUE | P11: TRUE | Q11: =AND(Q$10>=$E11,Q$10<$F11) -> TRUE | R11: TRUE | S11: TRUE | T11: TRUE | U11: TRUE | V11: FALSE | W11: FALSE | X11: FALSE | Y11: FALSE | Z11: FALSE | AA11: =AND(AA$10>=$E11,AA$10<$F11) -> FALSE | AB11: FALSE | AC11: FALSE | AD11: FALSE | AE11: FALSE | AF11: FALSE | AG11: FALSE | AH11: FALSE | AI11: FALSE | AJ11: FALSE | AK11: =AND(AK$10>=$E11,AK$10<$F11) -> FALSE | AL11: FALSE | AM11: FALSE | AN11: FALSE | AO11: FALSE | AP11: FALSE | AQ11: FALSE | AR11: FALSE | AS11: FALSE | AT11: FALSE | AU11: =AND(AU$10>=$E11,AU$10<$F11) -> FALSE | AV11: FALSE | AW11: FALSE | AX11: FALSE | AY11: FALSE | AZ11: FALSE | BA11: FALSE | BB11: FALSE | BC11: FALSE | BD11: FALSE | BE11: =AND(BE$10>=$E11,BE$10<$F11) -> FALSE | BF11: FALSE | BG11: FALSE | BH11: FALSE | BI11: FALSE | BJ11: FALSE | BK11: FALSE | BL11: FALSE | BM11: FALSE | BN11: FALSE | BO11: =AND(BO$10>=$E11,BO$10<$F11) -> FALSE | BP11: FALSE | BQ11: FALSE | BR11: FALSE | BS11: FALSE | BT11: FALSE | BU11: FALSE | BV11: FALSE | BW11: FALSE | BX11: FALSE | BY11: =AND(BY$10>=$E11,BY$10<$F11) -> FALSE | BZ11: FALSE | CA11: FALSE | CB11: FALSE | CC11: FALSE | CD11: FALSE | CE11: FALSE | CF11: FALSE | CG11: FALSE | CH11: FALSE | CI11: =AND(CI$10>=$E11,CI$10<$F11) -> FALSE | CJ11: FALSE | CK11: FALSE | CL11: FALSE | CM11: FALSE | CN11: FALSE | CO11: FALSE | CP11: FALSE | CQ11: FALSE | CR11: FALSE | CS11: =AND(CS$10>=$E11,CS$10<$F11) -> FALSE | CT11: FALSE | CU11: FALSE | CV11: FALSE | CW11: FALSE | CX11: FALSE | CY11: FALSE | CZ11: FALSE | DA11: FALSE | DB11: FALSE | DC11: =AND(DC$10>=$E11,DC$10<$F11) -> FALSE | DD11: FALSE | DE11: FALSE | DF11: FALSE | DG11: FALSE | DH11: FALSE | DI11: FALSE | DJ11: FALSE | DK11: FALSE | DL11: FALSE | DM11: =AND(DM$10>=$E11,DM$10<$F11) -> FALSE | DN11: FALSE | DO11: FALSE | DP11: FALSE | DQ11: FALSE | DR11: FALSE | DS11: FALSE | DT11: FALSE | DU11: FALSE | DV11: FALSE | DW11: =AND(DW$10>=$E11,DW$10<$F11) -> FALSE | DX11: FALSE | DY11: FALSE | DZ11: FALSE | EA11: FALSE | EB11: FALSE | EC11: FALSE | ED11: FALSE | EE11: FALSE | EF11: FALSE | EG11: =AND(EG$10>=$E11,EG$10<$F11) -> FALSE | EH11: FALSE | EI11: FALSE | EJ11: FALSE | EK11: FALSE | EL11: FALSE | EM11: FALSE | EN11: FALSE | EO11: FALSE | EP11: FALSE | EQ11: =AND(EQ$10>=$E11,EQ$10<$F11) -> FALSE | ER11: FALSE | ES11: FALSE | ET11: FALSE | EU11: FALSE | EV11: FALSE | EW11: FALSE | EX11: FALSE | EY11: FALSE | EZ11: FALSE | FA11: =AND(FA$10>=$E11,FA$10<$F11) -> FALSE | FB11: FALSE | FC11: FALSE | FD11: FALSE | FE11: FALSE | FF11: FALSE | FG11: FALSE | FH11: FALSE | FI11: FALSE | FJ11: FALSE | FK11: =AND(FK$10>=$E11,FK$10<$F11) -> FALSE | FL11: FALSE | FM11: FALSE | FN11: FALSE | FO11: FALSE | FP11: FALSE | FQ11: FALSE | FR11: FALSE | FS11: FALSE | FT11: FALSE | FU11: =AND(FU$10>=$E11,FU$10<$F11) -> FALSE | FV11: FALSE | FW11: FALSE | FX11: FALSE | FY11: FALSE | FZ11: FALSE | GA11: FALSE | GB11: FALSE | GC11: FALSE | GD11: FALSE | GE11: =AND(GE$10>=$E11,GE$10<$F11) -> FALSE | GF11: FALSE | GG11: FALSE | GH11: FALSE | GI11: FALSE | GJ11: FALSE | GK11: FALSE | GL11: FALSE | GM11: FALSE | GN11: FALSE | GO11: =AND(GO$10>=$E11,GO$10<$F11) -> FALSE | GP11: FALSE | GQ11: FALSE | GR11: FALSE | GS11: FALSE | GT11: FALSE | GU11: FALSE | GV11: FALSE | GW11: FALSE | GX11: FALSE | GY11: =AND(GY$10>=$E11,GY$10<$F11) -> FALSE | GZ11: FALSE | HA11: FALSE | HB11: FALSE | HC11: FALSE | HD11: FALSE | HE11: FALSE | HF11: FALSE | HG11: FALSE | HH11: FALSE | HI11: =AND(HI$10>=$E11,HI$10<$F11) -> FALSE | HJ11: FALSE | HK11: FALSE | HL11: FALSE | HM11: FALSE | HN11: FALSE | HO11: FALSE | HP11: FALSE | HQ11: FALSE | HR11: FALSE | HS11: =AND(HS$10>=$E11,HS$10<$F11) -> FALSE | HT11: FALSE | HU11: FALSE | HV11: FALSE | HW11: FALSE | HX11: FALSE | HY11: FALSE | HZ11: FALSE | IA11: FALSE | IB11: FALSE | IC11: =AND(IC$10>=$E11,IC$10<$F11) -> FALSE | ID11: FALSE | IE11: FALSE | IF11: FALSE | IG11: FALSE | IH11: FALSE | II11: FALSE | IJ11: FALSE | IK11: FALSE | IL11: FALSE | IM11: =AND(IM$10>=$E11,IM$10<$F11) -> FALSE | IN11: FALSE | IO11: FALSE | IP11: FALSE | IQ11: FALSE | IR11: FALSE | IS11: FALSE | IT11: FALSE | IU11: FALSE | IV11: FALSE | IW11: =AND(IW$10>=$E11,IW$10<$F11) -> FALSE | IX11: FALSE | IY11: FALSE | IZ11: FALSE | JA11: FALSE | JB11: FALSE | JC11: FALSE | JD11: FALSE | JE11: FALSE | JF11: FALSE | JG11: =AND(JG$10>=$E11,JG$10<$F11) -> FALSE | JH11: FALSE | JI11: FALSE | JJ11: FALSE | JK11: FALSE | JL11: FALSE | JM11: FALSE | JN11: FALSE | JO11: FALSE | JP11: FALSE | JQ11: =AND(JQ$10>=$E11,JQ$10<$F11) -> FALSE | JR11: FALSE | JS11: FALSE | JT11: FALSE | JU11: FALSE | JV11: FALSE | JW11: FALSE | JX11: FALSE | JY11: FALSE | JZ11: FALSE | KA11: =AND(KA$10>=$E11,KA$10<$F11) -> FALSE | KB11: FALSE | KC11: FALSE | KD11: FALSE | KE11: FALSE | KF11: FALSE | KG11: FALSE | KH11: FALSE | KI11: FALSE | KJ11: FALSE | KK11: =AND(KK$10>=$E11,KK$10<$F11) -> FALSE | KL11: FALSE | KM11: FALSE | KN11: FALSE | KO11: FALSE | KP11: FALSE | KQ11: FALSE | KR11: FALSE | KS11: FALSE | KT11: FALSE
B12: =B4 -> FC | E12: =C4 -> 2017-04-01 | F12: =C5 -> 2018-05-01 | G12: FALSE | H12: FALSE | I12: FALSE | J12: FALSE | K12: FALSE | L12: FALSE | M12: FALSE | N12: FALSE | O12: FALSE | P12: FALSE | Q12: FALSE | R12: FALSE | S12: FALSE | T12: FALSE | U12: FALSE | V12: TRUE | W12: TRUE | X12: TRUE | Y12: TRUE | Z12: TRUE | AA12: TRUE | AB12: TRUE | AC12: TRUE | AD12: TRUE | AE12: TRUE | AF12: TRUE | AG12: TRUE | AH12: TRUE | AI12: FALSE | AJ12: FALSE | AK12: FALSE | AL12: FALSE | AM12: FALSE | AN12: FALSE | AO12: FALSE | AP12: FALSE | AQ12: FALSE | AR12: FALSE | AS12: FALSE | AT12: FALSE | AU12: FALSE | AV12: FALSE | AW12: FALSE | AX12: FALSE | AY12: FALSE | AZ12: FALSE | BA12: FALSE | BB12: FALSE | BC12: FALSE | BD12: FALSE | BE12: FALSE | BF12: FALSE | BG12: FALSE | BH12: FALSE | BI12: FALSE | BJ12: FALSE | BK12: FALSE | BL12: FALSE | BM12: FALSE | BN12: FALSE | BO12: FALSE | BP12: FALSE | BQ12: FALSE | BR12: FALSE | BS12: FALSE | BT12: FALSE | BU12: FALSE | BV12: FALSE | BW12: FALSE | BX12: FALSE | BY12: FALSE | BZ12: FALSE | CA12: FALSE | CB12: FALSE | CC12: FALSE | CD12: FALSE | CE12: FALSE | CF12: FALSE | CG12: FALSE | CH12: FALSE | CI12: FALSE | CJ12: FALSE | CK12: FALSE | CL12: FALSE | CM12: FALSE | CN12: FALSE | CO12: FALSE | CP12: FALSE | CQ12: FALSE | CR12: FALSE | CS12: FALSE | CT12: FALSE | CU12: FALSE | CV12: FALSE | CW12: FALSE | CX12: FALSE | CY12: FALSE | CZ12: FALSE | DA12: FALSE | DB12: FALSE | DC12: FALSE | DD12: FALSE | DE12: FALSE | DF12: FALSE | DG12: FALSE | DH12: FALSE | DI12: FALSE | DJ12: FALSE | DK12: FALSE | DL12: FALSE | DM12: FALSE | DN12: FALSE | DO12: FALSE | DP12: FALSE | DQ12: FALSE | DR12: FALSE | DS12: FALSE | DT12: FALSE | DU12: FALSE | DV12: FALSE | DW12: FALSE | DX12: FALSE | DY12: FALSE | DZ12: FALSE | EA12: FALSE | EB12: FALSE | EC12: FALSE | ED12: FALSE | EE12: FALSE | EF12: FALSE | EG12: FALSE | EH12: FALSE | EI12: FALSE | EJ12: FALSE | EK12: FALSE | EL12: FALSE | EM12: FALSE | EN12: FALSE | EO12: FALSE | EP12: FALSE | EQ12: FALSE | ER12: FALSE | ES12: FALSE | ET12: FALSE | EU12: FALSE | EV12: FALSE | EW12: FALSE | EX12: FALSE | EY12: FALSE | EZ12: FALSE | FA12: FALSE | FB12: FALSE | FC12: FALSE | FD12: FALSE | FE12: FALSE | FF12: FALSE | FG12: FALSE | FH12: FALSE | FI12: FALSE | FJ12: FALSE | FK12: FALSE | FL12: FALSE | FM12: FALSE | FN12: FALSE | FO12: FALSE | FP12: FALSE | FQ12: FALSE | FR12: FALSE | FS12: FALSE | FT12: FALSE | FU12: FALSE | FV12: FALSE | FW12: FALSE | FX12: FALSE | FY12: FALSE | FZ12: FALSE | GA12: FALSE | GB12: FALSE | GC12: FALSE | GD12: FALSE | GE12: FALSE | GF12: FALSE | GG12: FALSE | GH12: FALSE | GI12: FALSE | GJ12: FALSE | GK12: FALSE | GL12: FALSE | GM12: FALSE | GN12: FALSE | GO12: FALSE | GP12: FALSE | GQ12: FALSE | GR12: FALSE | GS12: FALSE | GT12: FALSE | GU12: FALSE | GV12: FALSE | GW12: FALSE | GX12: FALSE | GY12: FALSE | GZ12: FALSE | HA12: FALSE | HB12: FALSE | HC12: FALSE | HD12: FALSE | HE12: FALSE | HF12: FALSE | HG12: FALSE | HH12: FALSE | HI12: FALSE | HJ12: FALSE | HK12: FALSE | HL12: FALSE | HM12: FALSE | HN12: FALSE | HO12: FALSE | HP12: FALSE | HQ12: FALSE | HR12: FALSE | HS12: FALSE | HT12: FALSE | HU12: FALSE | HV12: FALSE | HW12: FALSE | HX12: FALSE | HY12: FALSE | HZ12: FALSE | IA12: FALSE | IB12: FALSE | IC12: FALSE | ID12: FALSE | IE12: FALSE | IF12: FALSE | IG12: FALSE | IH12: FALSE | II12: FALSE | IJ12: FALSE | IK12: FALSE | IL12: FALSE | IM12: FALSE | IN12: FALSE | IO12: FALSE | IP12: FALSE | IQ12: FALSE | IR12: FALSE | IS12: FALSE | IT12: FALSE | IU12: FALSE | IV12: FALSE | IW12: FALSE | IX12: FALSE | IY12: FALSE | IZ12: FALSE | JA12: FALSE | JB12: FALSE | JC12: FALSE | JD12: FALSE | JE12: FALSE | JF12: FALSE | JG12: FALSE | JH12: FALSE | JI12: FALSE | JJ12: FALSE | JK12: FALSE | JL12: FALSE | JM12: FALSE | JN12: FALSE | JO12: FALSE | JP12: FALSE | JQ12: FALSE | JR12: FALSE | JS12: FALSE | JT12: FALSE | JU12: FALSE | JV12: FALSE | JW12: FALSE | JX12: FALSE | JY12: FALSE | JZ12: FALSE | KA12: FALSE | KB12: FALSE | KC12: FALSE | KD12: FALSE | KE12: FALSE | KF12: FALSE | KG12: FALSE | KH12: FALSE | KI12: FALSE | KJ12: FALSE | KK12: FALSE | KL12: FALSE | KM12: FALSE | KN12: FALSE | KO12: FALSE | KP12: FALSE | KQ12: FALSE | KR12: FALSE | KS12: FALSE | KT12: FALSE
B13: =B5 -> COD | E13: =C5 -> 2018-05-01 | F13: =C6 -> 2021-05-01 | G13: FALSE | H13: FALSE | I13: FALSE | J13: FALSE | K13: FALSE | L13: FALSE | M13: FALSE | N13: FALSE | O13: FALSE | P13: FALSE | Q13: FALSE | R13: FALSE | S13: FALSE | T13: FALSE | U13: FALSE | V13: FALSE | W13: FALSE | X13: FALSE | Y13: FALSE | Z13: FALSE | AA13: FALSE | AB13: FALSE | AC13: FALSE | AD13: FALSE | AE13: FALSE | AF13: FALSE | AG13: FALSE | AH13: FALSE | AI13: TRUE | AJ13: TRUE | AK13: TRUE | AL13: TRUE | AM13: TRUE | AN13: TRUE | AO13: TRUE | AP13: TRUE | AQ13: TRUE | AR13: TRUE | AS13: TRUE | AT13: TRUE | AU13: TRUE | AV13: TRUE | AW13: TRUE | AX13: TRUE | AY13: TRUE | AZ13: TRUE | BA13: TRUE | BB13: TRUE | BC13: TRUE | BD13: TRUE | BE13: TRUE | BF13: TRUE | BG13: TRUE | BH13: TRUE | BI13: TRUE | BJ13: TRUE | BK13: TRUE | BL13: TRUE | BM13: TRUE | BN13: TRUE | BO13: TRUE | BP13: TRUE | BQ13: TRUE | BR13: TRUE | BS13: FALSE | BT13: FALSE | BU13: FALSE | BV13: FALSE | BW13: FALSE | BX13: FALSE | BY13: FALSE | BZ13: FALSE | CA13: FALSE | CB13: FALSE | CC13: FALSE | CD13: FALSE | CE13: FALSE | CF13: FALSE | CG13: FALSE | CH13: FALSE | CI13: FALSE | CJ13: FALSE | CK13: FALSE | CL13: FALSE | CM13: FALSE | CN13: FALSE | CO13: FALSE | CP13: FALSE | CQ13: FALSE | CR13: FALSE | CS13: FALSE | CT13: FALSE | CU13: FALSE | CV13: FALSE | CW13: FALSE | CX13: FALSE | CY13: FALSE | CZ13: FALSE | DA13: FALSE | DB13: FALSE | DC13: FALSE | DD13: FALSE | DE13: FALSE | DF13: FALSE | DG13: FALSE | DH13: FALSE | DI13: FALSE | DJ13: FALSE | DK13: FALSE | DL13: FALSE | DM13: FALSE | DN13: FALSE | DO13: FALSE | DP13: FALSE | DQ13: FALSE | DR13: FALSE | DS13: FALSE | DT13: FALSE | DU13: FALSE | DV13: FALSE | DW13: FALSE | DX13: FALSE | DY13: FALSE | DZ13: FALSE | EA13: FALSE | EB13: FALSE | EC13: FALSE | ED13: FALSE | EE13: FALSE | EF13: FALSE | EG13: FALSE | EH13: FALSE | EI13: FALSE | EJ13: FALSE | EK13: FALSE | EL13: FALSE | EM13: FALSE | EN13: FALSE | EO13: FALSE | EP13: FALSE | EQ13: FALSE | ER13: FALSE | ES13: FALSE | ET13: FALSE | EU13: FALSE | EV13: FALSE | EW13: FALSE | EX13: FALSE | EY13: FALSE | EZ13: FALSE | FA13: FALSE | FB13: FALSE | FC13: FALSE | FD13: FALSE | FE13: FALSE | FF13: FALSE | FG13: FALSE | FH13: FALSE | FI13: FALSE | FJ13: FALSE | FK13: FALSE | FL13: FALSE | FM13: FALSE | FN13: FALSE | FO13: FALSE | FP13: FALSE | FQ13: FALSE | FR13: FALSE | FS13: FALSE | FT13: FALSE | FU13: FALSE | FV13: FALSE | FW13: FALSE | FX13: FALSE | FY13: FALSE | FZ13: FALSE | GA13: FALSE | GB13: FALSE | GC13: FALSE | GD13: FALSE | GE13: FALSE | GF13: FALSE | GG13: FALSE | GH13: FALSE | GI13: FALSE | GJ13: FALSE | GK13: FALSE | GL13: FALSE | GM13: FALSE | GN13: FALSE | GO13: FALSE | GP13: FALSE | GQ13: FALSE | GR13: FALSE | GS13: FALSE | GT13: FALSE | GU13: FALSE | GV13: FALSE | GW13: FALSE | GX13: FALSE | GY13: FALSE | GZ13: FALSE | HA13: FALSE | HB13: FALSE | HC13: FALSE | HD13: FALSE | HE13: FALSE | HF13: FALSE | HG13: FALSE | HH13: FALSE | HI13: FALSE | HJ13: FALSE | HK13: FALSE | HL13: FALSE | HM13: FALSE | HN13: FALSE | HO13: FALSE | HP13: FALSE | HQ13: FALSE | HR13: FALSE | HS13: FALSE | HT13: FALSE | HU13: FALSE | HV13: FALSE | HW13: FALSE | HX13: FALSE | HY13: FALSE | HZ13: FALSE | IA13: FALSE | IB13: FALSE | IC13: FALSE | ID13: FALSE | IE13: FALSE | IF13: FALSE | IG13: FALSE | IH13: FALSE | II13: FALSE | IJ13: FALSE | IK13: FALSE | IL13: FALSE | IM13: FALSE | IN13: FALSE | IO13: FALSE | IP13: FALSE | IQ13: FALSE | IR13: FALSE | IS13: FALSE | IT13: FALSE | IU13: FALSE | IV13: FALSE | IW13: FALSE | IX13: FALSE | IY13: FALSE | IZ13: FALSE | JA13: FALSE | JB13: FALSE | JC13: FALSE | JD13: FALSE | JE13: FALSE | JF13: FALSE | JG13: FALSE | JH13: FALSE | JI13: FALSE | JJ13: FALSE | JK13: FALSE | JL13: FALSE | JM13: FALSE | JN13: FALSE | JO13: FALSE | JP13: FALSE | JQ13: FALSE | JR13: FALSE | JS13: FALSE | JT13: FALSE | JU13: FALSE | JV13: FALSE | JW13: FALSE | JX13: FALSE | JY13: FALSE | JZ13: FALSE | KA13: FALSE | KB13: FALSE | KC13: FALSE | KD13: FALSE | KE13: FALSE | KF13: FALSE | KG13: FALSE | KH13: FALSE | KI13: FALSE | KJ13: FALSE | KK13: FALSE | KL13: FALSE | KM13: FALSE | KN13: FALSE | KO13: FALSE | KP13: FALSE | KQ13: FALSE | KR13: FALSE | KS13: FALSE | KT13: FALSE
B14: =B6 -> History | E14: =C6 -> 2021-05-01 | F14: =C7 -> 2043-05-01 | G14: FALSE | H14: FALSE | I14: FALSE | J14: FALSE | K14: FALSE | L14: FALSE | M14: FALSE | N14: FALSE | O14: FALSE | P14: FALSE | Q14: FALSE | R14: FALSE | S14: FALSE | T14: FALSE | U14: FALSE | V14: FALSE | W14: FALSE | X14: FALSE | Y14: FALSE | Z14: FALSE | AA14: FALSE | AB14: FALSE | AC14: FALSE | AD14: FALSE | AE14: FALSE | AF14: FALSE | AG14: FALSE | AH14: FALSE | AI14: FALSE | AJ14: FALSE | AK14: FALSE | AL14: FALSE | AM14: FALSE | AN14: FALSE | AO14: FALSE | AP14: FALSE | AQ14: FALSE | AR14: FALSE | AS14: FALSE | AT14: FALSE | AU14: FALSE | AV14: FALSE | AW14: FALSE | AX14: FALSE | AY14: FALSE | AZ14: FALSE | BA14: FALSE | BB14: FALSE | BC14: FALSE | BD14: FALSE | BE14: FALSE | BF14: FALSE | BG14: FALSE | BH14: FALSE | BI14: FALSE | BJ14: FALSE | BK14: FALSE | BL14: FALSE | BM14: FALSE | BN14: FALSE | BO14: FALSE | BP14: FALSE | BQ14: FALSE | BR14: FALSE | BS14: TRUE | BT14: TRUE | BU14: TRUE | BV14: TRUE | BW14: TRUE | BX14: TRUE | BY14: TRUE | BZ14: TRUE | CA14: TRUE | CB14: TRUE | CC14: TRUE | CD14: TRUE | CE14: TRUE | CF14: TRUE | CG14: TRUE | CH14: TRUE | CI14: TRUE | CJ14: TRUE | CK14: TRUE | CL14: TRUE | CM14: TRUE | CN14: TRUE | CO14: TRUE | CP14: TRUE | CQ14: TRUE | CR14: TRUE | CS14: TRUE | CT14: TRUE | CU14: TRUE | CV14: TRUE | CW14: TRUE | CX14: TRUE | CY14: TRUE | CZ14: TRUE | DA14: TRUE | DB14: TRUE | DC14: TRUE | DD14: TRUE | DE14: TRUE | DF14: TRUE | DG14: TRUE | DH14: TRUE | DI14: TRUE | DJ14: TRUE | DK14: TRUE | DL14: TRUE | DM14: TRUE | DN14: TRUE | DO14: TRUE | DP14: TRUE | DQ14: TRUE | DR14: TRUE | DS14: TRUE | DT14: TRUE | DU14: TRUE | DV14: TRUE | DW14: TRUE | DX14: TRUE | DY14: TRUE | DZ14: TRUE | EA14: TRUE | EB14: TRUE | EC14: TRUE | ED14: TRUE | EE14: TRUE | EF14: TRUE | EG14: TRUE | EH14: TRUE | EI14: TRUE | EJ14: TRUE | EK14: TRUE | EL14: TRUE | EM14: TRUE | EN14: TRUE | EO14: TRUE | EP14: TRUE | EQ14: TRUE | ER14: TRUE | ES14: TRUE | ET14: TRUE | EU14: TRUE | EV14: TRUE | EW14: TRUE | EX14: TRUE | EY14: TRUE | EZ14: TRUE | FA14: TRUE | FB14: TRUE | FC14: TRUE | FD14: TRUE | FE14: TRUE | FF14: TRUE | FG14: TRUE | FH14: TRUE | FI14: TRUE | FJ14: TRUE | FK14: TRUE | FL14: TRUE | FM14: TRUE | FN14: TRUE | FO14: TRUE | FP14: TRUE | FQ14: TRUE | FR14: TRUE | FS14: TRUE | FT14: TRUE | FU14: TRUE | FV14: TRUE | FW14: TRUE | FX14: TRUE | FY14: TRUE | FZ14: TRUE | GA14: TRUE | GB14: TRUE | GC14: TRUE | GD14: TRUE | GE14: TRUE | GF14: TRUE | GG14: TRUE | GH14: TRUE | GI14: TRUE | GJ14: TRUE | GK14: TRUE | GL14: TRUE | GM14: TRUE | GN14: TRUE | GO14: TRUE | GP14: TRUE | GQ14: TRUE | GR14: TRUE | GS14: TRUE | GT14: TRUE | GU14: TRUE | GV14: TRUE | GW14: TRUE | GX14: TRUE | GY14: TRUE | GZ14: TRUE | HA14: TRUE | HB14: TRUE | HC14: TRUE | HD14: TRUE | HE14: TRUE | HF14: TRUE | HG14: TRUE | HH14: TRUE | HI14: TRUE | HJ14: TRUE | HK14: TRUE | HL14: TRUE | HM14: TRUE | HN14: TRUE | HO14: TRUE | HP14: TRUE | HQ14: TRUE | HR14: TRUE | HS14: TRUE | HT14: TRUE | HU14: TRUE | HV14: TRUE | HW14: TRUE | HX14: TRUE | HY14: TRUE | HZ14: TRUE | IA14: TRUE | IB14: TRUE | IC14: TRUE | ID14: TRUE | IE14: TRUE | IF14: TRUE | IG14: TRUE | IH14: TRUE | II14: TRUE | IJ14: TRUE | IK14: TRUE | IL14: TRUE | IM14: TRUE | IN14: TRUE | IO14: TRUE | IP14: TRUE | IQ14: TRUE | IR14: TRUE | IS14: TRUE | IT14: TRUE | IU14: TRUE | IV14: TRUE | IW14: TRUE | IX14: TRUE | IY14: TRUE | IZ14: TRUE | JA14: TRUE | JB14: TRUE | JC14: TRUE | JD14: TRUE | JE14: TRUE | JF14: TRUE | JG14: TRUE | JH14: TRUE | JI14: TRUE | JJ14: TRUE | JK14: TRUE | JL14: TRUE | JM14: TRUE | JN14: TRUE | JO14: TRUE | JP14: TRUE | JQ14: TRUE | JR14: TRUE | JS14: TRUE | JT14: TRUE | JU14: TRUE | JV14: TRUE | JW14: TRUE | JX14: TRUE | JY14: TRUE | JZ14: TRUE | KA14: TRUE | KB14: TRUE | KC14: TRUE | KD14: TRUE | KE14: TRUE | KF14: TRUE | KG14: TRUE | KH14: TRUE | KI14: TRUE | KJ14: TRUE | KK14: TRUE | KL14: TRUE | KM14: TRUE | KN14: TRUE | KO14: TRUE | KP14: TRUE | KQ14: TRUE | KR14: TRUE | KS14: TRUE | KT14: TRUE
B16: Lookup | G16: =LOOKUP(G10,$C:$C,$D:$D) -> 0.2 | H16: =LOOKUP(H10,$C:$C,$D:$D) -> 0.2 | I16: 0.2 | J16: 0.2 | K16: 0.2 | L16: 0.2 | M16: 0.2 | N16: 0.2 | O16: 0.2 | P16: 0.2 | Q16: 0.2 | R16: 0.2 | S16: 0.2 | T16: 0.2 | U16: 0.2 | V16: 0.15 | W16: 0.15 | X16: 0.15 | Y16: 0.15 | Z16: 0.15 | AA16: 0.15 | AB16: 0.15 | AC16: 0.15 | AD16: 0.15 | AE16: 0.15 | AF16: 0.15 | AG16: 0.15 | AH16: 0.15 | AI16: 0.12 | AJ16: 0.12 | AK16: 0.12 | AL16: 0.12 | AM16: 0.12 | AN16: 0.12 | AO16: 0.12 | AP16: 0.12 | AQ16: 0.12 | AR16: 0.12 | AS16: 0.12 | AT16: 0.12 | AU16: 0.12 | AV16: 0.12 | AW16: 0.12 | AX16: 0.12 | AY16: 0.12 | AZ16: 0.12 | BA16: 0.12 | BB16: 0.12 | BC16: 0.12 | BD16: 0.12 | BE16: 0.12 | BF16: 0.12 | BG16: 0.12 | BH16: 0.12 | BI16: 0.12 | BJ16: 0.12 | BK16: 0.12 | BL16: 0.12 | BM16: 0.12 | BN16: 0.12 | BO16: 0.12 | BP16: 0.12 | BQ16: 0.12 | BR16: 0.12 | BS16: 0.08 | BT16: =LOOKUP(BT10,$C:$C,$D:$D) -> 0.08 | BU16: 0.08 | BV16: 0.08 | BW16: 0.08 | BX16: 0.08 | BY16: 0.08 | BZ16: 0.08 | CA16: 0.08 | CB16: 0.08 | CC16: 0.08 | CD16: 0.08 | CE16: 0.08 | CF16: 0.08 | CG16: 0.08 | CH16: 0.08 | CI16: 0.08 | CJ16: 0.08 | CK16: 0.08 | CL16: 0.08 | CM16: 0.08 | CN16: 0.08 | CO16: 0.08 | CP16: 0.08 | CQ16: 0.08 | CR16: 0.08 | CS16: 0.08 | CT16: 0.08 | CU16: 0.08 | CV16: 0.08 | CW16: 0.08 | CX16: 0.08 | CY16: 0.08 | CZ16: 0.08 | DA16: 0.08 | DB16: 0.08 | DC16: 0.08 | DD16: 0.08 | DE16: 0.08 | DF16: 0.08 | DG16: 0.08 | DH16: 0.08 | DI16: 0.08 | DJ16: 0.08 | DK16: 0.08 | DL16: 0.08 | DM16: 0.08 | DN16: 0.08 | DO16: 0.08 | DP16: 0.08 | DQ16: 0.08 | DR16: 0.08 | DS16: 0.08 | DT16: 0.08 | DU16: 0.08 | DV16: 0.08 | DW16: 0.08 | DX16: 0.08 | DY16: 0.08 | DZ16: 0.08 | EA16: 0.08 | EB16: 0.08 | EC16: 0.08 | ED16: 0.08 | EE16: 0.08 | EF16: =LOOKUP(EF10,$C:$C,$D:$D) -> 0.08 | EG16: 0.08 | EH16: 0.08 | EI16: 0.08 | EJ16: 0.08 | EK16: 0.08 | EL16: 0.08 | EM16: 0.08 | EN16: 0.08 | EO16: 0.08 | EP16: 0.08 | EQ16: 0.08 | ER16: 0.08 | ES16: 0.08 | ET16: 0.08 | EU16: 0.08 | EV16: 0.08 | EW16: 0.08 | EX16: 0.08 | EY16: 0.08 | EZ16: 0.08 | FA16: 0.08 | FB16: 0.08 | FC16: 0.08 | FD16: 0.08 | FE16: 0.08 | FF16: 0.08 | FG16: 0.08 | FH16: 0.08 | FI16: 0.08 | FJ16: 0.08 | FK16: 0.08 | FL16: 0.08 | FM16: 0.08 | FN16: 0.08 | FO16: 0.08 | FP16: 0.08 | FQ16: 0.08 | FR16: 0.08 | FS16: 0.08 | FT16: 0.08 | FU16: 0.08 | FV16: 0.08 | FW16: 0.08 | FX16: 0.08 | FY16: 0.08 | FZ16: 0.08 | GA16: 0.08 | GB16: 0.08 | GC16: 0.08 | GD16: 0.08 | GE16: 0.08 | GF16: 0.08 | GG16: 0.08 | GH16: 0.08 | GI16: 0.08 | GJ16: 0.08 | GK16: 0.08 | GL16: 0.08 | GM16: 0.08 | GN16: 0.08 | GO16: 0.08 | GP16: 0.08 | GQ16: 0.08 | GR16: =LOOKUP(GR10,$C:$C,$D:$D) -> 0.08 | GS16: 0.08 | GT16: 0.08 | GU16: 0.08 | GV16: 0.08 | GW16: 0.08 | GX16: 0.08 | GY16: 0.08 | GZ16: 0.08 | HA16: 0.08 | HB16: 0.08 | HC16: 0.08 | HD16: 0.08 | HE16: 0.08 | HF16: 0.08 | HG16: 0.08 | HH16: 0.08 | HI16: 0.08 | HJ16: 0.08 | HK16: 0.08 | HL16: 0.08 | HM16: 0.08 | HN16: 0.08 | HO16: 0.08 | HP16: 0.08 | HQ16: 0.08 | HR16: 0.08 | HS16: 0.08 | HT16: 0.08 | HU16: 0.08 | HV16: 0.08 | HW16: 0.08 | HX16: 0.08 | HY16: 0.08 | HZ16: 0.08 | IA16: 0.08 | IB16: 0.08 | IC16: 0.08 | ID16: 0.08 | IE16: 0.08 | IF16: 0.08 | IG16: 0.08 | IH16: 0.08 | II16: 0.08 | IJ16: 0.08 | IK16: 0.08 | IL16: 0.08 | IM16: 0.08 | IN16: 0.08 | IO16: 0.08 | IP16: 0.08 | IQ16: 0.08 | IR16: 0.08 | IS16: 0.08 | IT16: 0.08 | IU16: 0.08 | IV16: 0.08 | IW16: 0.08 | IX16: 0.08 | IY16: 0.08 | IZ16: 0.08 | JA16: 0.08 | JB16: 0.08 | JC16: 0.08 | JD16: =LOOKUP(JD10,$C:$C,$D:$D) -> 0.08 | JE16: 0.08 | JF16: 0.08 | JG16: 0.08 | JH16: 0.08 | JI16: 0.08 | JJ16: 0.08 | JK16: 0.08 | JL16: 0.08 | JM16: 0.08 | JN16: 0.08 | JO16: 0.08 | JP16: 0.08 | JQ16: 0.08 | JR16: 0.08 | JS16: 0.08 | JT16: 0.08 | JU16: 0.08 | JV16: 0.08 | JW16: 0.08 | JX16: 0.08 | JY16: 0.08 | JZ16: 0.08 | KA16: 0.08 | KB16: 0.08 | KC16: 0.08 | KD16: 0.08 | KE16: 0.08 | KF16: 0.08 | KG16: 0.08 | KH16: 0.08 | KI16: 0.08 | KJ16: 0.08 | KK16: 0.08 | KL16: 0.08 | KM16: 0.08 | KN16: 0.08 | KO16: 0.08 | KP16: 0.08 | KQ16: 0.08 | KR16: 0.08 | KS16: 0.08 | KT16: 0.08
B17: Lookup Interpolate | G17: =interpolate_look_up(G10,$C:$C,$D:$D) -> 0.2 | H17: =interpolate_look_up(H10,$C:$C,$D:$D) -> 0.196126534 | I17: 0.1925709125 | J17: 0.1888413281 | K17: 0.1853008418 | L17: 0.1817120593 | M17: 0.1783052359 | N17: 0.1748519396 | O17: 0.1714655244 | P17: 0.1682508079 | Q17: 0.164992239 | R17: 0.1618988867 | S17: 0.1587633376 | T17: 0.1556885156 | U17: 0.1529624747 | V17: 0.15 | W17: 0.1474792787 | X17: 0.1449190268 | Y17: 0.1424836903 | Z17: 0.1400101622 | AA17: 0.1375795748 | AB17: 0.1352675764 | AC17: 0.1329193206 | AD17: 0.1306856369 | AE17: 0.1284169239 | AF17: 0.126187596 | AG17: 0.1242072928 | AH17: 0.1220510444 | AI17: 0.12 | AJ17: 0.1186316477 | AK17: 0.1173222941 | AL17: 0.1159844755 | AM17: 0.114661912 | AN17: 0.1133963729 | AO17: 0.1121033214 | AP17: 0.1108660217 | AQ17: 0.1096018236 | AR17: 0.1083520411 | AS17: 0.107235459 | AT17: 0.10601266 | AU17: 0.1048425838 | AV17: 0.1036470706 | AW17: 0.1025031037 | AX17: 0.1013342675 | AY17: 0.1001787594 | AZ17: 0.09907307273 | BA17: 0.09794334887 | BB17: 0.09686233478 | BC17: 0.09575781983 | BD17: 0.09466589959 | BE17: 0.09365570066 | BF17: 0.09258775075 | BG17: 0.09156584712 | BH17: 0.09052172767 | BI17: 0.08952262702 | BJ17: 0.08850180628 | BK17: 0.0874926259 | BL17: 0.08652695786 | BM17: 0.08554029654 | BN17: 0.08459617662 | BO17: 0.08363153188 | BP17: 0.08267788692 | BQ17: 0.08182588037 | BR17: 0.08089282514 | BS17: 0.08 | BT17: =interpolate_look_up(BT10,$C:$C,$D:$D) -> 0.08 | BU17: 0.08 | BV17: 0.08 | BW17: 0.08 | BX17: 0.08 | BY17: 0.08 | BZ17: 0.08 | CA17: 0.08 | CB17: 0.08 | CC17: 0.08 | CD17: 0.08 | CE17: 0.08 | CF17: 0.08 | CG17: 0.08 | CH17: 0.08 | CI17: 0.08 | CJ17: 0.08 | CK17: 0.08 | CL17: 0.08 | CM17: 0.08 | CN17: 0.08 | CO17: 0.08 | CP17: 0.08 | CQ17: 0.08 | CR17: 0.08 | CS17: 0.08 | CT17: 0.08 | CU17: 0.08 | CV17: 0.08 | CW17: 0.08 | CX17: 0.08 | CY17: 0.08 | CZ17: 0.08 | DA17: 0.08 | DB17: 0.08 | DC17: 0.08 | DD17: 0.08 | DE17: 0.08 | DF17: 0.08 | DG17: 0.08 | DH17: 0.08 | DI17: 0.08 | DJ17: 0.08 | DK17: 0.08 | DL17: 0.08 | DM17: 0.08 | DN17: 0.08 | DO17: 0.08 | DP17: 0.08 | DQ17: 0.08 | DR17: 0.08 | DS17: 0.08 | DT17: 0.08 | DU17: 0.08 | DV17: 0.08 | DW17: 0.08 | DX17: 0.08 | DY17: 0.08 | DZ17: 0.08 | EA17: 0.08 | EB17: 0.08 | EC17: 0.08 | ED17: 0.08 | EE17: 0.08 | EF17: =interpolate_look_up(EF10,$C:$C,$D:$D) -> 0.08 | EG17: 0.08 | EH17: 0.08 | EI17: 0.08 | EJ17: 0.08 | EK17: 0.08 | EL17: 0.08 | EM17: 0.08 | EN17: 0.08 | EO17: 0.08 | EP17: 0.08 | EQ17: 0.08 | ER17: 0.08 | ES17: 0.08 | ET17: 0.08 | EU17: 0.08 | EV17: 0.08 | EW17: 0.08 | EX17: 0.08 | EY17: 0.08 | EZ17: 0.08 | FA17: 0.08 | FB17: 0.08 | FC17: 0.08 | FD17: 0.08 | FE17: 0.08 | FF17: 0.08 | FG17: 0.08 | FH17: 0.08 | FI17: 0.08 | FJ17: 0.08 | FK17: 0.08 | FL17: 0.08 | FM17: 0.08 | FN17: 0.08 | FO17: 0.08 | FP17: 0.08 | FQ17: 0.08 | FR17: 0.08 | FS17: 0.08 | FT17: 0.08 | FU17: 0.08 | FV17: 0.08 | FW17: 0.08 | FX17: 0.08 | FY17: 0.08 | FZ17: 0.08 | GA17: 0.08 | GB17: 0.08 | GC17: 0.08 | GD17: 0.08 | GE17: 0.08 | GF17: 0.08 | GG17: 0.08 | GH17: 0.08 | GI17: 0.08 | GJ17: 0.08 | GK17: 0.08 | GL17: 0.08 | GM17: 0.08 | GN17: 0.08 | GO17: 0.08 | GP17: 0.08 | GQ17: 0.08 | GR17: =interpolate_look_up(GR10,$C:$C,$D:$D) -> 0.08 | GS17: 0.08 | GT17: 0.08 | GU17: 0.08 | GV17: 0.08 | GW17: 0.08 | GX17: 0.08 | GY17: 0.08 | GZ17: 0.08 | HA17: 0.08 | HB17: 0.08 | HC17: 0.08 | HD17: 0.08 | HE17: 0.08 | HF17: 0.08 | HG17: 0.08 | HH17: 0.08 | HI17: 0.08 | HJ17: 0.08 | HK17: 0.08 | HL17: 0.08 | HM17: 0.08 | HN17: 0.08 | HO17: 0.08 | HP17: 0.08 | HQ17: 0.08 | HR17: 0.08 | HS17: 0.08 | HT17: 0.08 | HU17: 0.08 | HV17: 0.08 | HW17: 0.08 | HX17: 0.08 | HY17: 0.08 | HZ17: 0.08 | IA17: 0.08 | IB17: 0.08 | IC17: 0.08 | ID17: 0.08 | IE17: 0.08 | IF17: 0.08 | IG17: 0.08 | IH17: 0.08 | II17: 0.08 | IJ17: 0.08 | IK17: 0.08 | IL17: 0.08 | IM17: 0.08 | IN17: 0.08 | IO17: 0.08 | IP17: 0.08 | IQ17: 0.08 | IR17: 0.08 | IS17: 0.08 | IT17: 0.08 | IU17: 0.08 | IV17: 0.08 | IW17: 0.08 | IX17: 0.08 | IY17: 0.08 | IZ17: 0.08 | JA17: 0.08 | JB17: 0.08 | JC17: 0.08 | JD17: =interpolate_look_up(JD10,$C:$C,$D:$D) -> 0.08 | JE17: 0.08 | JF17: 0.08 | JG17: 0.08 | JH17: 0.08 | JI17: 0.08 | JJ17: 0.08 | JK17: 0.08 | JL17: 0.08 | JM17: 0.08 | JN17: 0.08 | JO17: 0.08 | JP17: 0.08 | JQ17: 0.08 | JR17: 0.08 | JS17: 0.08 | JT17: 0.08 | JU17: 0.08 | JV17: 0.08 | JW17: 0.08 | JX17: 0.08 | JY17: 0.08 | JZ17: 0.08 | KA17: 0.08 | KB17: 0.08 | KC17: 0.08 | KD17: 0.08 | KE17: 0.08 | KF17: 0.08 | KG17: 0.08 | KH17: 0.08 | KI17: 0.08 | KJ17: 0.08 | KK17: 0.08 | KL17: 0.08 | KM17: 0.08 | KN17: 0.08 | KO17: 0.08 | KP17: 0.08 | KQ17: 0.08 | KR17: 0.08 | KS17: 0.08 | KT17: 0.08
B18: Lookup Linear | G18: =interpolate_look_up_linear(G10,$C$3:$C$7,$D$3:$D$7) -> 0.2 | H18: =interpolate_look_up_linear(H10,$C$3:$C$7,$D$3:$D$7) -> 0.1966008772 | I18: 0.1934210526 | J18: 0.1900219298 | K18: 0.1867324561 | L18: 0.1833333333 | M18: 0.1800438596 | N18: 0.1766447368 | O18: 0.173245614 | P18: 0.1699561404 | Q18: 0.1665570175 | R18: 0.1632675439 | S18: 0.1598684211 | T18: 0.1564692982 | U18: 0.1533991228 | V18: 0.15 | W18: 0.147721519 | X18: 0.1453670886 | Y18: 0.1430886076 | Z18: 0.1407341772 | AA18: 0.1383797468 | AB18: 0.1361012658 | AC18: 0.1337468354 | AD18: 0.1314683544 | AE18: 0.1291139241 | AF18: 0.1267594937 | AG18: 0.1246329114 | AH18: 0.122278481 | AI18: 0.12 | AJ18: 0.1188686131 | AK18: 0.1177737226 | AL18: 0.1166423358 | AM18: 0.1155109489 | AN18: 0.1144160584 | AO18: 0.1132846715 | AP18: 0.112189781 | AQ18: 0.1110583942 | AR18: 0.1099270073 | AS18: 0.1089051095 | AT18: 0.1077737226 | AU18: 0.1066788321 | AV18: 0.1055474453 | AW18: 0.1044525547 | AX18: 0.1033211679 | AY18: 0.102189781 | AZ18: 0.1010948905 | BA18: 0.09996350365 | BB18: 0.09886861314 | BC18: 0.09773722628 | BD18: 0.09660583942 | BE18: 0.09554744526 | BF18: 0.09441605839 | BG18: 0.09332116788 | BH18: 0.09218978102 | BI18: 0.09109489051 | BJ18: 0.08996350365 | BK18: 0.08883211679 | BL18: 0.08773722628 | BM18: 0.08660583942 | BN18: 0.08551094891 | BO18: 0.08437956204 | BP18: 0.08324817518 | BQ18: 0.08222627737 | BR18: 0.08109489051 | BS18: 0.08 | BT18: =interpolate_look_up_linear(BT10,$C$3:$C$7,$D$3:$D$7) -> 0.08 | BU18: 0.08 | BV18: 0.08 | BW18: 0.08 | BX18: 0.08 | BY18: 0.08 | BZ18: 0.08 | CA18: 0.08 | CB18: 0.08 | CC18: 0.08 | CD18: 0.08 | CE18: 0.08 | CF18: 0.08 | CG18: 0.08 | CH18: 0.08 | CI18: 0.08 | CJ18: 0.08 | CK18: 0.08 | CL18: 0.08 | CM18: 0.08 | CN18: 0.08 | CO18: 0.08 | CP18: 0.08 | CQ18: 0.08 | CR18: 0.08 | CS18: 0.08 | CT18: 0.08 | CU18: 0.08 | CV18: 0.08 | CW18: 0.08 | CX18: 0.08 | CY18: 0.08 | CZ18: 0.08 | DA18: 0.08 | DB18: 0.08 | DC18: 0.08 | DD18: 0.08 | DE18: 0.08 | DF18: 0.08 | DG18: 0.08 | DH18: 0.08 | DI18: 0.08 | DJ18: 0.08 | DK18: 0.08 | DL18: 0.08 | DM18: 0.08 | DN18: 0.08 | DO18: 0.08 | DP18: 0.08 | DQ18: 0.08 | DR18: 0.08 | DS18: 0.08 | DT18: 0.08 | DU18: 0.08 | DV18: 0.08 | DW18: 0.08 | DX18: 0.08 | DY18: 0.08 | DZ18: 0.08 | EA18: 0.08 | EB18: 0.08 | EC18: 0.08 | ED18: 0.08 | EE18: 0.08 | EF18: =interpolate_look_up_linear(EF10,$C$3:$C$7,$D$3:$D$7) -> 0.08 | EG18: 0.08 | EH18: 0.08 | EI18: 0.08 | EJ18: 0.08 | EK18: 0.08 | EL18: 0.08 | EM18: 0.08 | EN18: 0.08 | EO18: 0.08 | EP18: 0.08 | EQ18: 0.08 | ER18: 0.08 | ES18: 0.08 | ET18: 0.08 | EU18: 0.08 | EV18: 0.08 | EW18: 0.08 | EX18: 0.08 | EY18: 0.08 | EZ18: 0.08 | FA18: 0.08 | FB18: 0.08 | FC18: 0.08 | FD18: 0.08 | FE18: 0.08 | FF18: 0.08 | FG18: 0.08 | FH18: 0.08 | FI18: 0.08 | FJ18: 0.08 | FK18: 0.08 | FL18: 0.08 | FM18: 0.08 | FN18: 0.08 | FO18: 0.08 | FP18: 0.08 | FQ18: 0.08 | FR18: 0.08 | FS18: 0.08 | FT18: 0.08 | FU18: 0.08 | FV18: 0.08 | FW18: 0.08 | FX18: 0.08 | FY18: 0.08 | FZ18: 0.08 | GA18: 0.08 | GB18: 0.08 | GC18: 0.08 | GD18: 0.08 | GE18: 0.08 | GF18: 0.08 | GG18: 0.08 | GH18: 0.08 | GI18: 0.08 | GJ18: 0.08 | GK18: 0.08 | GL18: 0.08 | GM18: 0.08 | GN18: 0.08 | GO18: 0.08 | GP18: 0.08 | GQ18: 0.08 | GR18: =interpolate_look_up_linear(GR10,$C$3:$C$7,$D$3:$D$7) -> 0.08 | GS18: 0.08 | GT18: 0.08 | GU18: 0.08 | GV18: 0.08 | GW18: 0.08 | GX18: 0.08 | GY18: 0.08 | GZ18: 0.08 | HA18: 0.08 | HB18: 0.08 | HC18: 0.08 | HD18: 0.08 | HE18: 0.08 | HF18: 0.08 | HG18: 0.08 | HH18: 0.08 | HI18: 0.08 | HJ18: 0.08 | HK18: 0.08 | HL18: 0.08 | HM18: 0.08 | HN18: 0.08 | HO18: 0.08 | HP18: 0.08 | HQ18: 0.08 | HR18: 0.08 | HS18: 0.08 | HT18: 0.08 | HU18: 0.08 | HV18: 0.08 | HW18: 0.08 | HX18: 0.08 | HY18: 0.08 | HZ18: 0.08 | IA18: 0.08 | IB18: 0.08 | IC18: 0.08 | ID18: 0.08 | IE18: 0.08 | IF18: 0.08 | IG18: 0.08 | IH18: 0.08 | II18: 0.08 | IJ18: 0.08 | IK18: 0.08 | IL18: 0.08 | IM18: 0.08 | IN18: 0.08 | IO18: 0.08 | IP18: 0.08 | IQ18: 0.08 | IR18: 0.08 | IS18: 0.08 | IT18: 0.08 | IU18: 0.08 | IV18: 0.08 | IW18: 0.08 | IX18: 0.08 | IY18: 0.08 | IZ18: 0.08 | JA18: 0.08 | JB18: 0.08 | JC18: 0.08 | JD18: =interpolate_look_up_linear(JD10,$C$3:$C$7,$D$3:$D$7) -> 0.08 | JE18: 0.08 | JF18: 0.08 | JG18: 0.08 | JH18: 0.08 | JI18: 0.08 | JJ18: 0.08 | JK18: 0.08 | JL18: 0.08 | JM18: 0.08 | JN18: 0.08 | JO18: 0.08 | JP18: 0.08 | JQ18: 0.08 | JR18: 0.08 | JS18: 0.08 | JT18: 0.08 | JU18: 0.08 | JV18: 0.08 | JW18: 0.08 | JX18: 0.08 | JY18: 0.08 | JZ18: 0.08 | KA18: 0.08 | KB18: 0.08 | KC18: 0.08 | KD18: 0.08 | KE18: 0.08 | KF18: 0.08 | KG18: 0.08 | KH18: 0.08 | KI18: 0.08 | KJ18: 0.08 | KK18: 0.08 | KL18: 0.08 | KM18: 0.08 | KN18: 0.08 | KO18: 0.08 | KP18: 0.08 | KQ18: 0.08 | KR18: 0.08 | KS18: 0.08 | KT18: 0.08
B19: Look up adjusted | G19: =interpolate_look_up_adjusted(G10,$C$3:$C$7,$D$3:$D$7) -> 0.2 | H19: =interpolate_look_up_adjusted(H10,$C$3:$C$7,$D$3:$D$7) -> 0.1966008772 | I19: 0.1934210526 | J19: 0.1900219298 | K19: 0.1867324561 | L19: 0.1833333333 | M19: 0.1800438596 | N19: 0.1766447368 | O19: 0.173245614 | P19: 0.1699561404 | Q19: 0.1665570175 | R19: 0.1632675439 | S19: 0.1598684211 | T19: 0.1564692982 | U19: 0.1533991228 | V19: 0.15 | W19: 0.147721519 | X19: 0.1453670886 | Y19: 0.1430886076 | Z19: 0.1407341772 | AA19: 0.1383797468 | AB19: 0.1361012658 | AC19: 0.1337468354 | AD19: 0.1314683544 | AE19: 0.1291139241 | AF19: 0.1267594937 | AG19: 0.1246329114 | AH19: 0.122278481 | AI19: 0.12 | AJ19: 0.1188686131 | AK19: 0.1177737226 | AL19: 0.1166423358 | AM19: 0.1155109489 | AN19: 0.1144160584 | AO19: 0.1132846715 | AP19: 0.112189781 | AQ19: 0.1110583942 | AR19: 0.1099270073 | AS19: 0.1089051095 | AT19: 0.1077737226 | AU19: 0.1066788321 | AV19: 0.1055474453 | AW19: 0.1044525547 | AX19: 0.1033211679 | AY19: 0.102189781 | AZ19: 0.1010948905 | BA19: 0.09996350365 | BB19: 0.09886861314 | BC19: 0.09773722628 | BD19: 0.09660583942 | BE19: 0.09554744526 | BF19: 0.09441605839 | BG19: 0.09332116788 | BH19: 0.09218978102 | BI19: 0.09109489051 | BJ19: 0.08996350365 | BK19: 0.08883211679 | BL19: 0.08773722628 | BM19: 0.08660583942 | BN19: 0.08551094891 | BO19: 0.08437956204 | BP19: 0.08324817518 | BQ19: 0.08222627737 | BR19: 0.08109489051 | BS19: 0.08 | BT19: =interpolate_look_up_adjusted(BT10,$C$3:$C$7,$D$3:$D$7) -> 0.08 | BU19: 0.08 | BV19: 0.08 | BW19: 0.08 | BX19: 0.08 | BY19: 0.08 | BZ19: 0.08 | CA19: 0.08 | CB19: 0.08 | CC19: 0.08 | CD19: 0.08 | CE19: 0.08 | CF19: 0.08 | CG19: 0.08 | CH19: 0.08 | CI19: 0.08 | CJ19: 0.08 | CK19: 0.08 | CL19: 0.08 | CM19: 0.08 | CN19: 0.08 | CO19: 0.08 | CP19: 0.08 | CQ19: 0.08 | CR19: 0.08 | CS19: 0.08 | CT19: 0.08 | CU19: 0.08 | CV19: 0.08 | CW19: 0.08 | CX19: 0.08 | CY19: 0.08 | CZ19: 0.08 | DA19: 0.08 | DB19: 0.08 | DC19: 0.08 | DD19: 0.08 | DE19: 0.08 | DF19: 0.08 | DG19: 0.08 | DH19: 0.08 | DI19: 0.08 | DJ19: 0.08 | DK19: 0.08 | DL19: 0.08 | DM19: 0.08 | DN19: 0.08 | DO19: 0.08 | DP19: 0.08 | DQ19: 0.08 | DR19: 0.08 | DS19: 0.08 | DT19: 0.08 | DU19: 0.08 | DV19: 0.08 | DW19: 0.08 | DX19: 0.08 | DY19: 0.08 | DZ19: 0.08 | EA19: 0.08 | EB19: 0.08 | EC19: 0.08 | ED19: 0.08 | EE19: 0.08 | EF19: =interpolate_look_up_adjusted(EF10,$C$3:$C$7,$D$3:$D$7) -> 0.08 | EG19: 0.08 | EH19: 0.08 | EI19: 0.08 | EJ19: 0.08 | EK19: 0.08 | EL19: 0.08 | EM19: 0.08 | EN19: 0.08 | EO19: 0.08 | EP19: 0.08 | EQ19: 0.08 | ER19: 0.08 | ES19: 0.08 | ET19: 0.08 | EU19: 0.08 | EV19: 0.08 | EW19: 0.08 | EX19: 0.08 | EY19: 0.08 | EZ19: 0.08 | FA19: 0.08 | FB19: 0.08 | FC19: 0.08 | FD19: 0.08 | FE19: 0.08 | FF19: 0.08 | FG19: 0.08 | FH19: 0.08 | FI19: 0.08 | FJ19: 0.08 | FK19: 0.08 | FL19: 0.08 | FM19: 0.08 | FN19: 0.08 | FO19: 0.08 | FP19: 0.08 | FQ19: 0.08 | FR19: 0.08 | FS19: 0.08 | FT19: 0.08 | FU19: 0.08 | FV19: 0.08 | FW19: 0.08 | FX19: 0.08 | FY19: 0.08 | FZ19: 0.08 | GA19: 0.08 | GB19: 0.08 | GC19: 0.08 | GD19: 0.08 | GE19: 0.08 | GF19: 0.08 | GG19: 0.08 | GH19: 0.08 | GI19: 0.08 | GJ19: 0.08 | GK19: 0.08 | GL19: 0.08 | GM19: 0.08 | GN19: 0.08 | GO19: 0.08 | GP19: 0.08 | GQ19: 0.08 | GR19: =interpolate_look_up_adjusted(GR10,$C$3:$C$7,$D$3:$D$7) -> 0.08 | GS19: 0.08 | GT19: 0.08 | GU19: 0.08 | GV19: 0.08 | GW19: 0.08 | GX19: 0.08 | GY19: 0.08 | GZ19: 0.08 | HA19: 0.08 | HB19: 0.08 | HC19: 0.08 | HD19: 0.08 | HE19: 0.08 | HF19: 0.08 | HG19: 0.08 | HH19: 0.08 | HI19: 0.08 | HJ19: 0.08 | HK19: 0.08 | HL19: 0.08 | HM19: 0.08 | HN19: 0.08 | HO19: 0.08 | HP19: 0.08 | HQ19: 0.08 | HR19: 0.08 | HS19: 0.08 | HT19: 0.08 | HU19: 0.08 | HV19: 0.08 | HW19: 0.08 | HX19: 0.08 | HY19: 0.08 | HZ19: 0.08 | IA19: 0.08 | IB19: 0.08 | IC19: 0.08 | ID19: 0.08 | IE19: 0.08 | IF19: 0.08 | IG19: 0.08 | IH19: 0.08 | II19: 0.08 | IJ19: 0.08 | IK19: 0.08 | IL19: 0.08 | IM19: 0.08 | IN19: 0.08 | IO19: 0.08 | IP19: 0.08 | IQ19: 0.08 | IR19: 0.08 | IS19: 0.08 | IT19: 0.08 | IU19: 0.08 | IV19: 0.08 | IW19: 0.08 | IX19: 0.08 | IY19: 0.08 | IZ19: 0.08 | JA19: 0.08 | JB19: 0.08 | JC19: 0.08 | JD19: =interpolate_look_up_adjusted(JD10,$C$3:$C$7,$D$3:$D$7) -> 0.08 | JE19: 0.08 | JF19: 0.08 | JG19: 0.08 | JH19: 0.08 | JI19: 0.08 | JJ19: 0.08 | JK19: 0.08 | JL19: 0.08 | JM19: 0.08 | JN19: 0.08 | JO19: 0.08 | JP19: 0.08 | JQ19: 0.08 | JR19: 0.08 | JS19: 0.08 | JT19: 0.08 | JU19: 0.08 | JV19: 0.08 | JW19: 0.08 | JX19: 0.08 | JY19: 0.08 | JZ19: 0.08 | KA19: 0.08 | KB19: 0.08 | KC19: 0.08 | KD19: 0.08 | KE19: 0.08 | KF19: 0.08 | KG19: 0.08 | KH19: 0.08 | KI19: 0.08 | KJ19: 0.08 | KK19: 0.08 | KL19: 0.08 | KM19: 0.08 | KN19: 0.08 | KO19: 0.08 | KP19: 0.08 | KQ19: 0.08 | KR19: 0.08 | KS19: 0.08 | KT19: 0.08

Sheet Linear
C1: Instructions at www.edbodmer.com | G1: Questions: e-mail edwardbodmer@gmail.com
D2: 1 | E2: 5 | F2: 8
D3: 100 | E3: 200 | F3: 300
B5: Value | C5: 3
B6: =show_formula(C6) -> =interpolate_look_up_linear(C5,D2:F2,D3:F3) | C6: =interpolate_look_up_linear(C5,D2:F2,D3:F3) -> 150
B9: Value | C9: 143
B10: =_xlfn.FORMULATEXT(C10) -> =interpolate_look_up_linear(C9,D3:F3,D2:F2) | C10: =interpolate_look_up_linear(C9,D3:F3,D2:F2) -> 2.72
B14: Declining Series (Reverse) | D14: 300 | E14: 200 | F14: 100
D15: 1 | E15: 5 | F15: 8
B18: value | C18: 150
B19: =_xlfn.FORMULATEXT(C19) -> =interpolate_look_up_reverse(C18,D14:F14,D15:F15) | C19: =interpolate_look_up_reverse(C18,D14:F14,D15:F15) -> 0.5
C20: =AVERAGE(E15:F15) -> 6.5
B22: value | C22: 270
B23: =_xlfn.FORMULATEXT(C23) -> =interpolate_look_up_reverse(C22,D14:F14,D15:F15) | C23: =interpolate_look_up_reverse(C22,D14:F14,D15:F15) -> 0.9
B25: value | C25: 3
D27: 4.9235 | E27: 4.042 | F27: 2.921 | G27: 1.921
D28: 1 | E28: 2 | F28: 3 | G28: 4
C30: 3.5
C31: =interpolate_look_up_reverse(C30,D27:G27,D28:G28) -> 0.7108764091

Sheet Full Row Test
I1: Instructions at www.edbodmer.com | M1: Questions: e-mail edwardbodmer@gmail.com
E2: 1 | F2: 5 | G2: 10 | H2: 20
D3: Debt to Cap | E3: 0.6 | F3: 0.4 | G3: 0.3 | H3: 0.25
D5: Year | E5: 1 | F5: 2 | G5: 3 | H5: 4 | I5: 5 | J5: 6 | K5: 7 | L5: 8 | M5: 9 | N5: 10 | O5: 11 | P5: 12 | Q5: 13 | R5: 14 | S5: 15 | T5: 16 | U5: 17 | V5: 18 | W5: 19 | X5: 20 | Y5: 21 | Z5: 22 | AA5: 23 | AB5: 24 | AC5: 25 | AD5: 26 | AE5: 27 | AF5: 28 | AG5: 29 | AH5: 30 | AI5: 31 | AJ5: 32 | AK5: 33 | AL5: 34 | AM5: 35 | AN5: 36 | AO5: 37 | AP5: 38 | AQ5: 39 | AR5: 40 | AS5: 41 | AT5: 42 | AU5: 43 | AV5: 44 | AW5: 45 | AX5: 46 | AY5: 47 | AZ5: 48 | BA5: 49 | BB5: 50 | BC5: 51 | BD5: 52 | BE5: 53 | BF5: 54 | BG5: 55 | BH5: 56 | BI5: 57 | BJ5: 58 | BK5: 59 | BL5: 60 | BM5: 61 | BN5: 62 | BO5: 63 | BP5: 64 | BQ5: 65 | BR5: 66 | BS5: 67 | BT5: 68 | BU5: 69 | BV5: 70 | BW5: 71 | BX5: 72 | BY5: 73 | BZ5: 74 | CA5: 75 | CB5: 76 | CC5: 77 | CD5: 78 | CE5: 79 | CF5: 80 | CG5: 81 | CH5: 82 | CI5: 83 | CJ5: 84 | CK5: 85 | CL5: 86 | CM5: 87 | CN5: 88 | CO5: 89 | CP5: 90 | CQ5: 91 | CR5: 92 | CS5: 93 | CT5: 94 | CU5: 95 | CV5: 96 | CW5: 97 | CX5: 98 | CY5: 99 | CZ5: 100 | DA5: 101 | DB5: 102 | DC5: 103 | DD5: 104 | DE5: 105 | DF5: 106 | DG5: 107 | DH5: 108 | DI5: 109 | DJ5: 110 | DK5: 111 | DL5: 112 | DM5: 113 | DN5: 114 | DO5: 115 | DP5: 116 | DQ5: 117 | DR5: 118 | DS5: 119 | DT5: 120 | DU5: 121 | DV5: 122 | DW5: 123 | DX5: 124 | DY5: 125 | DZ5: 126 | EA5: 127 | EB5: 128 | EC5: 129 | ED5: 130 | EE5: 131 | EF5: 132 | EG5: 133 | EH5: 134 | EI5: 135 | EJ5: 136 | EK5: 137 | EL5: 138 | EM5: 139 | EN5: 140 | EO5: 141 | EP5: 142 | EQ5: 143 | ER5: 144 | ES5: 145 | ET5: 146 | EU5: 147 | EV5: 148 | EW5: 149 | EX5: 150 | EY5: 151 | EZ5: 152 | FA5: 153 | FB5: 154 | FC5: 155 | FD5: 156 | FE5: 157 | FF5: 158 | FG5: 159 | FH5: 160 | FI5: 161 | FJ5: 162 | FK5: 163 | FL5: 164 | FM5: 165 | FN5: 166 | FO5: 167 | FP5: 168 | FQ5: 169 | FR5: 170 | FS5: 171 | FT5: 172 | FU5: 173 | FV5: 174 | FW5: 175 | FX5: 176 | FY5: 177 | FZ5: 178 | GA5: 179 | GB5: 180 | GC5: 181 | GD5: 182 | GE5: 183 | GF5: 184 | GG5: 185 | GH5: 186 | GI5: 187 | GJ5: 188 | GK5: 189 | GL5: 190 | GM5: 191 | GN5: 192 | GO5: 193 | GP5: 194 | GQ5: 195 | GR5: 196 | GS5: 197 | GT5: 198 | GU5: 199 | GV5: 200 | GW5: 201 | GX5: 202 | GY5: 203 | GZ5: 204 | HA5: 205 | HB5: 206 | HC5: 207 | HD5: 208 | HE5: 209 | HF5: 210 | HG5: 211 | HH5: 212 | HI5: 213 | HJ5: 214 | HK5: 215 | HL5: 216 | HM5: 217 | HN5: 218 | HO5: 219 | HP5: 220 | HQ5: 221 | HR5: 222 | HS5: 223 | HT5: 224 | HU5: 225 | HV5: 226 | HW5: 227 | HX5: 228 | HY5: 229 | HZ5: 230 | IA5: 231 | IB5: 232 | IC5: 233 | ID5: 234 | IE5: 235 | IF5: 236 | IG5: 237 | IH5: 238 | II5: 239 | IJ5: 240 | IK5: 241 | IL5: 242 | IM5: 243 | IN5: 244 | IO5: 245 | IP5: 246 | IQ5: 247 | IR5: 248 | IS5: 249 | IT5: 250 | IU5: 251 | IV5: 252 | IW5: 253 | IX5: 254 | IY5: 255 | IZ5: 256 | JA5: 257 | JB5: 258 | JC5: 259 | JD5: 260 | JE5: 261 | JF5: 262 | JG5: 263 | JH5: 264 | JI5: 265 | JJ5: 266 | JK5: 267 | JL5: 268 | JM5: 269 | JN5: 270 | JO5: 271 | JP5: 272 | JQ5: 273 | JR5: 274 | JS5: 275 | JT5: 276 | JU5: 277 | JV5: 278 | JW5: 279 | JX5: 280 | JY5: 281 | JZ5: 282 | KA5: 283 | KB5: 284 | KC5: 285 | KD5: 286 | KE5: 287 | KF5: 288 | KG5: 289 | KH5: 290 | KI5: 291 | KJ5: 292 | KK5: 293 | KL5: 294 | KM5: 295 | KN5: 296 | KO5: 297 | KP5: 298 | KQ5: 299 | KR5: 300
D7: Interpolate Lookup | E7: =interpolate_look_up(E5,2:2,3:3) -> 0.6 | F7: =interpolate_look_up(F5,2:2,3:3) -> 0.5421612022 | G7: 0.4898979486 | H7: 0.4426727679 | I7: 0.4 | J7: 0.3776350045 | K7: 0.3565204916 | L7: 0.3365865436 | M7: 0.3177671523 | N7: 0.3 | O7: 0.2945799134 | P7: 0.2892577512 | Q7: 0.2840317443 | R7: 0.2789001554 | S7: 0.2738612788 | T7: 0.2689134392 | U7: 0.2640549921 | V7: 0.2592843223 | W7: 0.254599844 | X7: 0.25 | Y7: 0.25 | Z7: 0.25 | AA7: 0.25 | AB7: 0.25 | AC7: 0.25 | AD7: 0.25 | AE7: 0.25 | AF7: 0.25 | AG7: 0.25 | AH7: 0.25 | AI7: 0.25 | AJ7: 0.25 | AK7: 0.25 | AL7: 0.25 | AM7: 0.25 | AN7: 0.25 | AO7: 0.25 | AP7: 0.25 | AQ7: 0.25 | AR7: 0.25 | AS7: 0.25 | AT7: 0.25 | AU7: 0.25 | AV7: 0.25 | AW7: 0.25 | AX7: 0.25 | AY7: 0.25 | AZ7: 0.25 | BA7: 0.25 | BB7: 0.25 | BC7: 0.25 | BD7: 0.25 | BE7: 0.25 | BF7: 0.25 | BG7: 0.25 | BH7: 0.25 | BI7: 0.25 | BJ7: 0.25 | BK7: 0.25 | BL7: 0.25 | BM7: 0.25 | BN7: 0.25 | BO7: 0.25 | BP7: 0.25 | BQ7: =interpolate_look_up(BQ5,2:2,3:3) -> 0.25 | BR7: 0.25 | BS7: 0.25 | BT7: 0.25 | BU7: 0.25 | BV7: 0.25 | BW7: 0.25 | BX7: 0.25 | BY7: 0.25 | BZ7: 0.25 | CA7: 0.25 | CB7: 0.25 | CC7: 0.25 | CD7: 0.25 | CE7: 0.25 | CF7: 0.25 | CG7: 0.25 | CH7: 0.25 | CI7: 0.25 | CJ7: 0.25 | CK7: 0.25 | CL7: 0.25 | CM7: 0.25 | CN7: 0.25 | CO7: 0.25 | CP7: 0.25 | CQ7: 0.25 | CR7: 0.25 | CS7: 0.25 | CT7: 0.25 | CU7: 0.25 | CV7: 0.25 | CW7: 0.25 | CX7: 0.25 | CY7: 0.25 | CZ7: 0.25 | DA7: 0.25 | DB7: 0.25 | DC7: 0.25 | DD7: 0.25 | DE7: 0.25 | DF7: 0.25 | DG7: 0.25 | DH7: 0.25 | DI7: 0.25 | DJ7: 0.25 | DK7: 0.25 | DL7: 0.25 | DM7: 0.25 | DN7: 0.25 | DO7: 0.25 | DP7: 0.25 | DQ7: 0.25 | DR7: 0.25 | DS7: 0.25 | DT7: 0.25 | DU7: 0.25 | DV7: 0.25 | DW7: 0.25 | DX7: 0.25 | DY7: 0.25 | DZ7: 0.25 | EA7: 0.25 | EB7: 0.25 | EC7: =interpolate_look_up(EC5,2:2,3:3) -> 0.25 | ED7: 0.25 | EE7: 0.25 | EF7: 0.25 | EG7: 0.25 | EH7: 0.25 | EI7: 0.25 | EJ7: 0.25 | EK7: 0.25 | EL7: 0.25 | EM7: 0.25 | EN7: 0.25 | EO7: 0.25 | EP7: 0.25 | EQ7: 0.25 | ER7: 0.25 | ES7: 0.25 | ET7: 0.25 | EU7: 0.25 | EV7: 0.25 | EW7: 0.25 | EX7: 0.25 | EY7: 0.25 | EZ7: 0.25 | FA7: 0.25 | FB7: 0.25 | FC7: 0.25 | FD7: 0.25 | FE7: 0.25 | FF7: 0.25 | FG7: 0.25 | FH7: 0.25 | FI7: 0.25 | FJ7: 0.25 | FK7: 0.25 | FL7: 0.25 | FM7: 0.25 | FN7: 0.25 | FO7: 0.25 | FP7: 0.25 | FQ7: 0.25 | FR7: 0.25 | FS7: 0.25 | FT7: 0.25 | FU7: 0.25 | FV7: 0.25 | FW7: 0.25 | FX7: 0.25 | FY7: 0.25 | FZ7: 0.25 | GA7: 0.25 | GB7: 0.25 | GC7: 0.25 | GD7: 0.25 | GE7: 0.25 | GF7: 0.25 | GG7: 0.25 | GH7: 0.25 | GI7: 0.25 | GJ7: 0.25 | GK7: 0.25 | GL7: 0.25 | GM7: 0.25 | GN7: 0.25 | GO7: =interpolate_look_up(GO5,2:2,3:3) -> 0.25 | GP7: 0.25 | GQ7: 0.25 | GR7: 0.25 | GS7: 0.25 | GT7: 0.25 | GU7: 0.25 | GV7: 0.25 | GW7: 0.25 | GX7: 0.25 | GY7: 0.25 | GZ7: 0.25 | HA7: 0.25 | HB7: 0.25 | HC7: 0.25 | HD7: 0.25 | HE7: 0.25 | HF7: 0.25 | HG7: 0.25 | HH7: 0.25 | HI7: 0.25 | HJ7: 0.25 | HK7: 0.25 | HL7: 0.25 | HM7: 0.25 | HN7: 0.25 | HO7: 0.25 | HP7: 0.25 | HQ7: 0.25 | HR7: 0.25 | HS7: 0.25 | HT7: 0.25 | HU7: 0.25 | HV7: 0.25 | HW7: 0.25 | HX7: 0.25 | HY7: 0.25 | HZ7: 0.25 | IA7: 0.25 | IB7: 0.25 | IC7: 0.25 | ID7: 0.25 | IE7: 0.25 | IF7: 0.25 | IG7: 0.25 | IH7: 0.25 | II7: 0.25 | IJ7: 0.25 | IK7: 0.25 | IL7: 0.25 | IM7: 0.25 | IN7: 0.25 | IO7: 0.25 | IP7: 0.25 | IQ7: 0.25 | IR7: 0.25 | IS7: 0.25 | IT7: 0.25 | IU7: 0.25 | IV7: 0.25 | IW7: 0.25 | IX7: 0.25 | IY7: 0.25 | IZ7: 0.25 | JA7: =interpolate_look_up(JA5,2:2,3:3) -> 0.25 | JB7: 0.25 | JC7: 0.25 | JD7: 0.25 | JE7: 0.25 | JF7: 0.25 | JG7: 0.25 | JH7: 0.25 | JI7: 0.25 | JJ7: 0.25 | JK7: 0.25 | JL7: 0.25 | JM7: 0.25 | JN7: 0.25 | JO7: 0.25 | JP7: 0.25 | JQ7: 0.25 | JR7: 0.25 | JS7: 0.25 | JT7: 0.25 | JU7: 0.25 | JV7: 0.25 | JW7: 0.25 | JX7: 0.25 | JY7: 0.25 | JZ7: 0.25 | KA7: 0.25 | KB7: 0.25 | KC7: 0.25 | KD7: 0.25 | KE7: 0.25 | KF7: 0.25 | KG7: 0.25 | KH7: 0.25 | KI7: 0.25 | KJ7: 0.25 | KK7: 0.25 | KL7: 0.25 | KM7: 0.25 | KN7: 0.25 | KO7: 0.25 | KP7: 0.25 | KQ7: 0.25 | KR7: 0.25
D8: Interpolate Lookup Linear | E8: =interpolate_look_up_linear(E5,2:2,3:3) -> 0.6 | F8: 0.55 | G8: 0.5 | H8: 0.45 | I8: 0.4 | J8: 0.38 | K8: 0.36 | L8: 0.34 | M8: 0.32 | N8: 0.3 | O8: 0.295 | P8: 0.29 | Q8: 0.285 | R8: 0.28 | S8: 0.275 | T8: 0.27 | U8: 0.265 | V8: 0.26 | W8: 0.255 | X8: 0.25 | Y8: 0.25 | Z8: 0.25 | AA8: 0.25 | AB8: 0.25 | AC8: 0.25 | AD8: 0.25 | AE8: 0.25 | AF8: 0.25 | AG8: 0.25 | AH8: 0.25 | AI8: 0.25 | AJ8: 0.25 | AK8: 0.25 | AL8: 0.25 | AM8: 0.25 | AN8: 0.25 | AO8: 0.25 | AP8: 0.25 | AQ8: 0.25 | AR8: 0.25 | AS8: 0.25 | AT8: 0.25 | AU8: 0.25 | AV8: 0.25 | AW8: 0.25 | AX8: 0.25 | AY8: 0.25 | AZ8: 0.25 | BA8: 0.25 | BB8: 0.25 | BC8: 0.25 | BD8: 0.25 | BE8: 0.25 | BF8: 0.25 | BG8: 0.25 | BH8: 0.25 | BI8: 0.25 | BJ8: 0.25 | BK8: 0.25 | BL8: 0.25 | BM8: 0.25 | BN8: 0.25 | BO8: 0.25 | BP8: 0.25 | BQ8: =interpolate_look_up_linear(BQ5,2:2,3:3) -> 0.25 | BR8: 0.25 | BS8: 0.25 | BT8: 0.25 | BU8: 0.25 | BV8: 0.25 | BW8: 0.25 | BX8: 0.25 | BY8: 0.25 | BZ8: 0.25 | CA8: 0.25 | CB8: 0.25 | CC8: 0.25 | CD8: 0.25 | CE8: 0.25 | CF8: 0.25 | CG8: 0.25 | CH8: 0.25 | CI8: 0.25 | CJ8: 0.25 | CK8: 0.25 | CL8: 0.25 | CM8: 0.25 | CN8: 0.25 | CO8: 0.25 | CP8: 0.25 | CQ8: 0.25 | CR8: 0.25 | CS8: 0.25 | CT8: 0.25 | CU8: 0.25 | CV8: 0.25 | CW8: 0.25 | CX8: 0.25 | CY8: 0.25 | CZ8: 0.25 | DA8: 0.25 | DB8: 0.25 | DC8: 0.25 | DD8: 0.25 | DE8: 0.25 | DF8: 0.25 | DG8: 0.25 | DH8: 0.25 | DI8: 0.25 | DJ8: 0.25 | DK8: 0.25 | DL8: 0.25 | DM8: 0.25 | DN8: 0.25 | DO8: 0.25 | DP8: 0.25 | DQ8: 0.25 | DR8: 0.25 | DS8: 0.25 | DT8: 0.25 | DU8: 0.25 | DV8: 0.25 | DW8: 0.25 | DX8: 0.25 | DY8: 0.25 | DZ8: 0.25 | EA8: 0.25 | EB8: 0.25 | EC8: =interpolate_look_up_linear(EC5,2:2,3:3) -> 0.25 | ED8: 0.25 | EE8: 0.25 | EF8: 0.25 | EG8: 0.25 | EH8: 0.25 | EI8: 0.25 | EJ8: 0.25 | EK8: 0.25 | EL8: 0.25 | EM8: 0.25 | EN8: 0.25 | EO8: 0.25 | EP8: 0.25 | EQ8: 0.25 | ER8: 0.25 | ES8: 0.25 | ET8: 0.25 | EU8: 0.25 | EV8: 0.25 | EW8: 0.25 | EX8: 0.25 | EY8: 0.25 | EZ8: 0.25 | FA8: 0.25 | FB8: 0.25 | FC8: 0.25 | FD8: 0.25 | FE8: 0.25 | FF8: 0.25 | FG8: 0.25 | FH8: 0.25 | FI8: 0.25 | FJ8: 0.25 | FK8: 0.25 | FL8: 0.25 | FM8: 0.25 | FN8: 0.25 | FO8: 0.25 | FP8: 0.25 | FQ8: 0.25 | FR8: 0.25 | FS8: 0.25 | FT8: 0.25 | FU8: 0.25 | FV8: 0.25 | FW8: 0.25 | FX8: 0.25 | FY8: 0.25 | FZ8: 0.25 | GA8: 0.25 | GB8: 0.25 | GC8: 0.25 | GD8: 0.25 | GE8: 0.25 | GF8: 0.25 | GG8: 0.25 | GH8: 0.25 | GI8: 0.25 | GJ8: 0.25 | GK8: 0.25 | GL8: 0.25 | GM8: 0.25 | GN8: 0.25 | GO8: =interpolate_look_up_linear(GO5,2:2,3:3) -> 0.25 | GP8: 0.25 | GQ8: 0.25 | GR8: 0.25 | GS8: 0.25 | GT8: 0.25 | GU8: 0.25 | GV8: 0.25 | GW8: 0.25 | GX8: 0.25 | GY8: 0.25 | GZ8: 0.25 | HA8: 0.25 | HB8: 0.25 | HC8: 0.25 | HD8: 0.25 | HE8: 0.25 | HF8: 0.25 | HG8: 0.25 | HH8: 0.25 | HI8: 0.25 | HJ8: 0.25 | HK8: 0.25 | HL8: 0.25 | HM8: 0.25 | HN8: 0.25 | HO8: 0.25 | HP8: 0.25 | HQ8: 0.25 | HR8: 0.25 | HS8: 0.25 | HT8: 0.25 | HU8: 0.25 | HV8: 0.25 | HW8: 0.25 | HX8: 0.25 | HY8: 0.25 | HZ8: 0.25 | IA8: 0.25 | IB8: 0.25 | IC8: 0.25 | ID8: 0.25 | IE8: 0.25 | IF8: 0.25 | IG8: 0.25 | IH8: 0.25 | II8: 0.25 | IJ8: 0.25 | IK8: 0.25 | IL8: 0.25 | IM8: 0.25 | IN8: 0.25 | IO8: 0.25 | IP8: 0.25 | IQ8: 0.25 | IR8: 0.25 | IS8: 0.25 | IT8: 0.25 | IU8: 0.25 | IV8: 0.25 | IW8: 0.25 | IX8: 0.25 | IY8: 0.25 | IZ8: 0.25 | JA8: =interpolate_look_up_linear(JA5,2:2,3:3) -> 0.25 | JB8: 0.25 | JC8: 0.25 | JD8: 0.25 | JE8: 0.25 | JF8: 0.25 | JG8: 0.25 | JH8: 0.25 | JI8: 0.25 | JJ8: 0.25 | JK8: 0.25 | JL8: 0.25 | JM8: 0.25 | JN8: 0.25 | JO8: 0.25 | JP8: 0.25 | JQ8: 0.25 | JR8: 0.25 | JS8: 0.25 | JT8: 0.25 | JU8: 0.25 | JV8: 0.25 | JW8: 0.25 | JX8: 0.25 | JY8: 0.25 | JZ8: 0.25 | KA8: 0.25 | KB8: 0.25 | KC8: 0.25 | KD8: 0.25 | KE8: 0.25 | KF8: 0.25 | KG8: 0.25 | KH8: 0.25 | KI8: 0.25 | KJ8: 0.25 | KK8: 0.25 | KL8: 0.25 | KM8: 0.25 | KN8: 0.25 | KO8: 0.25 | KP8: 0.25 | KQ8: 0.25 | KR8: 0.25
D9: Interpolate Lookup Adjusted | E9: =interpolate_look_up_adjusted(E5,2:2,3:3) -> 0.6 | F9: 0.55 | G9: 0.5 | H9: 0.45 | I9: 0.25 | J9: 0.25 | K9: 0.25 | L9: 0.25 | M9: 0.25 | N9: 0.25 | O9: 0.25 | P9: 0.25 | Q9: 0.25 | R9: 0.25 | S9: 0.25 | T9: 0.25 | U9: 0.25 | V9: 0.25 | W9: 0.25 | X9: 0.25 | Y9: 0.25 | Z9: 0.25 | AA9: 0.25 | AB9: 0.25 | AC9: 0.25 | AD9: 0.25 | AE9: 0.25 | AF9: 0.25 | AG9: 0.25 | AH9: 0.25 | AI9: 0.25 | AJ9: 0.25 | AK9: 0.25 | AL9: 0.25 | AM9: 0.25 | AN9: 0.25 | AO9: 0.25 | AP9: 0.25 | AQ9: 0.25 | AR9: 0.25 | AS9: 0.25 | AT9: 0.25 | AU9: 0.25 | AV9: 0.25 | AW9: 0.25 | AX9: 0.25 | AY9: 0.25 | AZ9: 0.25 | BA9: 0.25 | BB9: 0.25 | BC9: 0.25 | BD9: 0.25 | BE9: 0.25 | BF9: 0.25 | BG9: 0.25 | BH9: 0.25 | BI9: 0.25 | BJ9: 0.25 | BK9: 0.25 | BL9: 0.25 | BM9: 0.25 | BN9: 0.25 | BO9: 0.25 | BP9: 0.25 | BQ9: =interpolate_look_up_adjusted(BQ5,2:2,3:3) -> 0.25 | BR9: 0.25 | BS9: 0.25 | BT9: 0.25 | BU9: 0.25 | BV9: 0.25 | BW9: 0.25 | BX9: 0.25 | BY9: 0.25 | BZ9: 0.25 | CA9: 0.25 | CB9: 0.25 | CC9: 0.25 | CD9: 0.25 | CE9: 0.25 | CF9: 0.25 | CG9: 0.25 | CH9: 0.25 | CI9: 0.25 | CJ9: 0.25 | CK9: 0.25 | CL9: 0.25 | CM9: 0.25 | CN9: 0.25 | CO9: 0.25 | CP9: 0.25 | CQ9: 0.25 | CR9: 0.25 | CS9: 0.25 | CT9: 0.25 | CU9: 0.25 | CV9: 0.25 | CW9: 0.25 | CX9: 0.25 | CY9: 0.25 | CZ9: 0.25 | DA9: 0.25 | DB9: 0.25 | DC9: 0.25 | DD9: 0.25 | DE9: 0.25 | DF9: 0.25 | DG9: 0.25 | DH9: 0.25 | DI9: 0.25 | DJ9: 0.25 | DK9: 0.25 | DL9: 0.25 | DM9: 0.25 | DN9: 0.25 | DO9: 0.25 | DP9: 0.25 | DQ9: 0.25 | DR9: 0.25 | DS9: 0.25 | DT9: 0.25 | DU9: 0.25 | DV9: 0.25 | DW9: 0.25 | DX9: 0.25 | DY9: 0.25 | DZ9: 0.25 | EA9: 0.25 | EB9: 0.25 | EC9: =interpolate_look_up_adjusted(EC5,2:2,3:3) -> 0.25 | ED9: 0.25 | EE9: 0.25 | EF9: 0.25 | EG9: 0.25 | EH9: 0.25 | EI9: 0.25 | EJ9: 0.25 | EK9: 0.25 | EL9: 0.25 | EM9: 0.25 | EN9: 0.25 | EO9: 0.25 | EP9: 0.25 | EQ9: 0.25 | ER9: 0.25 | ES9: 0.25 | ET9: 0.25 | EU9: 0.25 | EV9: 0.25 | EW9: 0.25 | EX9: 0.25 | EY9: 0.25 | EZ9: 0.25 | FA9: 0.25 | FB9: 0.25 | FC9: 0.25 | FD9: 0.25 | FE9: 0.25 | FF9: 0.25 | FG9: 0.25 | FH9: 0.25 | FI9: 0.25 | FJ9: 0.25 | FK9: 0.25 | FL9: 0.25 | FM9: 0.25 | FN9: 0.25 | FO9: 0.25 | FP9: 0.25 | FQ9: 0.25 | FR9: 0.25 | FS9: 0.25 | FT9: 0.25 | FU9: 0.25 | FV9: 0.25 | FW9: 0.25 | FX9: 0.25 | FY9: 0.25 | FZ9: 0.25 | GA9: 0.25 | GB9: 0.25 | GC9: 0.25 | GD9: 0.25 | GE9: 0.25 | GF9: 0.25 | GG9: 0.25 | GH9: 0.25 | GI9: 0.25 | GJ9: 0.25 | GK9: 0.25 | GL9: 0.25 | GM9: 0.25 | GN9: 0.25 | GO9: =interpolate_look_up_adjusted(GO5,2:2,3:3) -> 0.25 | GP9: 0.25 | GQ9: 0.25 | GR9: 0.25 | GS9: 0.25 | GT9: 0.25 | GU9: 0.25 | GV9: 0.25 | GW9: 0.25 | GX9: 0.25 | GY9: 0.25 | GZ9: 0.25 | HA9: 0.25 | HB9: 0.25 | HC9: 0.25 | HD9: 0.25 | HE9: 0.25 | HF9: 0.25 | HG9: 0.25 | HH9: 0.25 | HI9: 0.25 | HJ9: 0.25 | HK9: 0.25 | HL9: 0.25 | HM9: 0.25 | HN9: 0.25 | HO9: 0.25 | HP9: 0.25 | HQ9: 0.25 | HR9: 0.25 | HS9: 0.25 | HT9: 0.25 | HU9: 0.25 | HV9: 0.25 | HW9: 0.25 | HX9: 0.25 | HY9: 0.25 | HZ9: 0.25 | IA9: 0.25 | IB9: 0.25 | IC9: 0.25 | ID9: 0.25 | IE9: 0.25 | IF9: 0.25 | IG9: 0.25 | IH9: 0.25 | II9: 0.25 | IJ9: 0.25 | IK9: 0.25 | IL9: 0.25 | IM9: 0.25 | IN9: 0.25 | IO9: 0.25 | IP9: 0.25 | IQ9: 0.25 | IR9: 0.25 | IS9: 0.25 | IT9: 0.25 | IU9: 0.25 | IV9: 0.25 | IW9: 0.25 | IX9: 0.25 | IY9: 0.25 | IZ9: 0.25 | JA9: =interpolate_look_up_adjusted(JA5,2:2,3:3) -> 0.25 | JB9: 0.25 | JC9: 0.25 | JD9: 0.25 | JE9: 0.25 | JF9: 0.25 | JG9: 0.25 | JH9: 0.25 | JI9: 0.25 | JJ9: 0.25 | JK9: 0.25 | JL9: 0.25 | JM9: 0.25 | JN9: 0.25 | JO9: 0.25 | JP9: 0.25 | JQ9: 0.25 | JR9: 0.25 | JS9: 0.25 | JT9: 0.25 | JU9: 0.25 | JV9: 0.25 | JW9: 0.25 | JX9: 0.25 | JY9: 0.25 | JZ9: 0.25 | KA9: 0.25 | KB9: 0.25 | KC9: 0.25 | KD9: 0.25 | KE9: 0.25 | KF9: 0.25 | KG9: 0.25 | KH9: 0.25 | KI9: 0.25 | KJ9: 0.25 | KK9: 0.25 | KL9: 0.25 | KM9: 0.25 | KN9: 0.25 | KO9: 0.25 | KP9: 0.25 | KQ9: 0.25 | KR9: 0.25

Sheet Basic
B1: Instructions at www.edbodmer.com | F1: Questions: e-mail edwardbodmer@gmail.com
D4: 1 | E4: 7
D5: 2 | E5: 4
D9: 1 | E9: 2 | F9: 3 | G9: 4 | H9: 5 | I9: 6 | J9: 7 | K9: 8 | L9: 9 | M9: 10
B11: Lookup | D11: =LOOKUP(D9,4:4,5:5) -> 2 | E11: 2 | F11: 2 | G11: 2 | H11: 2 | I11: 2 | J11: 4 | K11: 4 | L11: 4 | M11: 4
B13: Average Lookup | D13: =look_up_average(D9,4:4,5:5) -> 150 | E13: 2 | F13: 2 | G13: 2 | H13: 2 | I13: 2 | J13: 150 | K13: 4 | L13: 4 | M13: 4
B15: Long lookup | D15: =long_look_up(D9,4:4,5:5) -> 2 | E15: 2 | F15: 2 | G15: 2 | H15: 2 | I15: 2 | J15: 4 | K15: 4 | L15: 4 | M15: 4
B17: Basic Lookup | D17: =basic_look_up(D9,$D$4:$G$4,$D$5:$G$5) -> 2 | E17: =basic_look_up(E9,$D$4:$G$4,$D$5:$G$5) -> 2 | F17: 2 | G17: 2 | H17: 2 | I17: 2 | J17: 0 | K17: 0 | L17: =basic_look_up(L9,$D$4:$G$4,$D$5:$G$5) -> 0 | M17: =basic_look_up(M9,$D$4:$G$4,$D$5:$G$5) -> 0

Sheet Full Column Demonstration
C1: Base Value | D1: 100
C2: Growth | D2: 0.005
C3: Vol | D3: 0.03
D5: Value | F5: Avg | G5: Lookup | I5: Avg | J5: Moving
E6: =C7 -> 2016-01-01 | F6: =D7 -> 100 | G6: =F6 -> 100 | I6: Lookup | J6: Interpolate Lookup
B7: =EOMONTH(C7,0) -> 2016-01-31 | C7: 2016-01-01 | D7: 100 | E7: =B7 -> 2016-01-31 | F7: =AVERAGEIF(B:B,E7,D:D) -> 123.9241877 | G7: =LOOKUP(E7,C:C,D:D) -> 144.3538491 | I7: =LOOKUP(B7,E:E,F:F) -> 123.9241877 | J7: =interpolate_look_up(C7,E:E,G:G) -> 100 | K7: =LOOKUP(C7,E:E,F:F) -> 100
B8: =EOMONTH(C8,0) -> 2016-01-31 | C8: =C7+1 -> 2016-01-02 | D8: 97.66978186 | E8: =EOMONTH(E7,1) -> 2016-02-29 | F8: 141.9054349 | G8: 131.7669276 | I8: 123.9241877 | J8: 101.2311753 | K8: 100
B9: 2016-01-31 | C9: =C8+1 -> 2016-01-03 | D9: 101.8197123 | E9: =EOMONTH(E8,1) -> 2016-03-31 | F9: 148.9699686 | G9: 166.0892659 | I9: 123.9241877 | J9: 102.4775085 | K9: 100
B10: 2016-01-31 | C10: 2016-01-04 | D10: 102.0262266 | E10: 2016-04-30 | F10: 180.9877602 | G10: 195.0010686 | I10: 123.9241877 | J10: 103.7391862 | K10: 100
B11: 2016-01-31 | C11: 2016-01-05 | D11: 104.5514084 | E11: 2016-05-31 | F11: 212.3135335 | G11: 247.10315 | I11: 123.9241877 | J11: 105.0163974 | K11: 100
B12: 2016-01-31 | C12: 2016-01-06 | D12: 106.2967243 | E12: 2016-06-30 | F12: 226.9641314 | G12: 207.7858627 | I12: 123.9241877 | J12: 106.3093334 | K12: 100
B13: 2016-01-31 | C13: 2016-01-07 | D13: 111.9903469 | E13: 2016-07-31 | F13: 215.3066646 | G13: 195.5418874 | I13: 123.9241877 | J13: 107.6181876 | K13: 100
B14: 2016-01-31 | C14: 2016-01-08 | D14: 108.6134465 | I14: 123.9241877 | J14: 108.9431561 | K14: 100
B15: 2016-01-31 | C15: 2016-01-09 | D15: 111.0374813 | I15: 123.9241877 | J15: 110.2844373 | K15: 100 | L15: =show_formula(J15) -> =interpolate_look_up(C15,E:E,G:G)
B16: 2016-01-31 | C16: 2016-01-10 | D16: 109.7668179 | I16: 123.9241877 | J16: 111.642232 | K16: 100
B17: 2016-01-31 | C17: 2016-01-11 | D17: 114.0771919 | I17: 123.9241877 | J17: 113.0167436 | K17: 100
B18: 2016-01-31 | C18: 2016-01-12 | D18: 110.0284483 | I18: 123.9241877 | J18: 114.4081778 | K18: 100
B19: 2016-01-31 | C19: 2016-01-13 | D19: 114.6928498 | I19: 123.9241877 | J19: 115.816743 | K19: 100
B20: 2016-01-31 | C20: 2016-01-14 | D20: 114.8995722 | I20: 123.9241877 | J20: 117.2426501 | K20: 100
B21: 2016-01-31 | C21: 2016-01-15 | D21: 115.401363 | I21: 123.9241877 | J21: 118.6861126 | K21: 100
B22: 2016-01-31 | C22: 2016-01-16 | D22: 117.9037492 | I22: 123.9241877 | J22: 120.1473467 | K22: 100
B23: 2016-01-31 | C23: 2016-01-17 | D23: 120.0685322 | I23: 123.9241877 | J23: 121.6265711 | K23: 100
B24: 2016-01-31 | C24: 2016-01-18 | D24: 128.9371295 | I24: 123.9241877 | J24: 123.1240074 | K24: 100
B25: 2016-01-31 | C25: 2016-01-19 | D25: 132.1292429 | I25: 123.9241877 | J25: 124.6398797 | K25: 100
B26: 2016-01-31 | C26: 2016-01-20 | D26: 128.4150353 | I26: 123.9241877 | J26: 126.1744151 | K26: 100
B27: 2016-01-31 | C27: 2016-01-21 | D27: 141.5093569 | I27: 123.9241877 | J27: 127.7278433 | K27: 100
B28: 2016-01-31 | C28: 2016-01-22 | D28: 142.8680789 | I28: 123.9241877 | J28: 129.3003969 | K28: 100
B29: 2016-01-31 | C29: 2016-01-23 | D29: 141.7992137 | I29: 123.9241877 | J29: 130.8923114 | K29: 100
B30: 2016-01-31 | C30: 2016-01-24 | D30: 140.8430233 | I30: 123.9241877 | J30: 132.5038252 | K30: 100
B31: 2016-01-31 | C31: 2016-01-25 | D31: 143.721514 | I31: 123.9241877 | J31: 134.1351795 | K31: 100
B32: 2016-01-31 | C32: 2016-01-26 | D32: 143.7968608 | I32: 123.9241877 | J32: 135.7866187 | K32: 100
B33: 2016-01-31 | C33: 2016-01-27 | D33: 150.969554 | I33: 123.9241877 | J33: 137.45839 | K33: 100
B34: 2016-01-31 | C34: 2016-01-28 | D34: 146.7585729 | I34: 123.9241877 | J34: 139.1507437 | K34: 100
B35: 2016-01-31 | C35: 2016-01-29 | D35: 150.0943865 | I35: 123.9241877 | J35: 140.8639332 | K35: 100
B36: 2016-01-31 | C36: 2016-01-30 | D36: 144.610347 | I36: 123.9241877 | J36: 142.5982152 | K36: 100
B37: 2016-01-31 | C37: 2016-01-31 | D37: 144.3538491 | I37: 123.9241877 | J37: 144.3538491 | K37: 123.9241877
B38: 2016-02-29 | C38: 2016-02-01 | D38: 144.1294047 | I38: 141.9054349 | J38: 143.9004309 | K38: 123.9241877
B39: 2016-02-29 | C39: 2016-02-02 | D39: 148.9656848 | I39: 141.9054349 | J39: 143.448437 | K39: 123.9241877
B40: 2016-02-29 | C40: 2016-02-03 | D40: 147.8307402 | I40: 141.9054349 | J40: 142.9978627 | K40: 123.9241877
B41: 2016-02-29 | C41: 2016-02-04 | D41: 140.6282219 | I41: 141.9054349 | J41: 142.5487037 | K41: 123.9241877
B42: 2016-02-29 | C42: 2016-02-05 | D42: 138.8881806 | I42: 141.9054349 | J42: 142.1009555 | K42: 123.9241877
B43: 2016-02-29 | C43: 2016-02-06 | D43: 139.1807411 | I43: 141.9054349 | J43: 141.6546137 | K43: 123.9241877
B44: 2016-02-29 | C44: 2016-02-07 | D44: 139.0146673 | I44: 141.9054349 | J44: 141.2096738 | K44: 123.9241877
B45: 2016-02-29 | C45: 2016-02-08 | D45: 142.1133495 | I45: 141.9054349 | J45: 140.7661316 | K45: 123.9241877
B46: 2016-02-29 | C46: 2016-02-09 | D46: 146.2427281 | I46: 141.9054349 | J46: 140.3239825 | K46: 123.9241877
B47: 2016-02-29 | C47: 2016-02-10 | D47: 145.7354583 | I47: 141.9054349 | J47: 139.8832222 | K47: 123.9241877
B48: 2016-02-29 | C48: 2016-02-11 | D48: 141.6666222 | I48: 141.9054349 | J48: 139.4438463 | K48: 123.9241877
B49: 2016-02-29 | C49: 2016-02-12 | D49: 148.1595789 | I49: 141.9054349 | J49: 139.0058505 | K49: 123.9241877
B50: 2016-02-29 | C50: 2016-02-13 | D50: 146.379842 | I50: 141.9054349 | J50: 138.5692305 | K50: 123.9241877
B51: 2016-02-29 | C51: 2016-02-14 | D51: 150.9274182 | I51: 141.9054349 | J51: 138.1339819 | K51: 123.9241877
B52: 2016-02-29 | C52: 2016-02-15 | D52: 147.9407829 | I52: 141.9054349 | J52: 137.7001005 | K52: 123.9241877
B53: 2016-02-29 | C53: 2016-02-16 | D53: 143.2993858 | I53: 141.9054349 | J53: 137.2675818 | K53: 123.9241877
B54: 2016-02-29 | C54: 2016-02-17 | D54: 143.0412669 | I54: 141.9054349 | J54: 136.8364217 | K54: 123.9241877
B55: 2016-02-29 | C55: 2016-02-18 | D55: 148.5828393 | I55: 141.9054349 | J55: 136.4066159 | K55: 123.9241877
B56: 2016-02-29 | C56: 2016-02-19 | D56: 150.3402388 | I56: 141.9054349 | J56: 135.9781602 | K56: 123.9241877
B57: 2016-02-29 | C57: 2016-02-20 | D57: 149.2057556 | I57: 141.9054349 | J57: 135.5510502 | K57: 123.9241877
B58: 2016-02-29 | C58: 2016-02-21 | D58: 144.7357502 | I58: 141.9054349 | J58: 135.1252818 | K58: 123.9241877
B59: 2016-02-29 | C59: 2016-02-22 | D59: 141.6760978 | I59: 141.9054349 | J59: 134.7008507 | K59: 123.9241877
B60: 2016-02-29 | C60: 2016-02-23 | D60: 135.9555823 | I60: 141.9054349 | J60: 134.2777527 | K60: 123.9241877
B61: 2016-02-29 | C61: 2016-02-24 | D61: 129.3984774 | I61: 141.9054349 | J61: 133.8559838 | K61: 123.9241877
B62: 2016-02-29 | C62: 2016-02-25 | D62: 129.7482763 | I62: 141.9054349 | J62: 133.4355396 | K62: 123.9241877
B63: 2016-02-29 | C63: 2016-02-26 | D63: 131.8181225 | I63: 141.9054349 | J63: 133.016416 | K63: 123.9241877
B64: 2016-02-29 | C64: 2016-02-27 | D64: 132.7989513 | I64: 141.9054349 | J64: 132.5986089 | K64: 123.9241877
B65: 2016-02-29 | C65: 2016-02-28 | D65: 135.0865197 | I65: 141.9054349 | J65: 132.1821142 | K65: 123.9241877
B66: 2016-02-29 | C66: 2016-02-29 | D66: 131.7669276 | I66: 141.9054349 | J66: 131.7669276 | K66: 141.9054349
B67: 2016-03-31 | C67: 2016-03-01 | D67: 134.5318238 | I67: 148.9699686 | J67: 132.7545726 | K67: 141.9054349
B68: 2016-03-31 | C68: 2016-03-02 | D68: 133.0393225 | I68: 148.9699686 | J68: 133.7496204 | K68: 141.9054349
B69: 2016-03-31 | C69: 2016-03-03 | D69: 132.1622372 | I69: 148.9699686 | J69: 134.7521265 | K69: 141.9054349
B70: 2016-03-31 | C70: 2016-03-04 | D70: 131.2419566 | I70: 148.9699686 | J70: 135.7621467 | K70: 141.9054349
B71: 2016-03-31 | C71: 2016-03-05 | D71: 129.2159935 | I71: =LOOKUP(B71,E:E,F:F) -> 148.9699686 | J71: =interpolate_look_up(C71,E:E,G:G) -> 136.7797375 | K71: =LOOKUP(C71,E:E,F:F) -> 141.9054349
B72: =EOMONTH(C72,0) -> 2016-03-31 | C72: 2016-03-06 | D72: 130.9667893 | I72: 148.9699686 | J72: 137.8049554 | K72: 141.9054349
B73: 2016-03-31 | C73: =C72+1 -> 2016-03-07 | D73: 134.7516477 | I73: 148.9699686 | J73: 138.8378578 | K73: 141.9054349
B74: 2016-03-31 | C74: 2016-03-08 | D74: 131.9825816 | I74: 148.9699686 | J74: 139.8785023 | K74: 141.9054349
B75: 2016-03-31 | C75: 2016-03-09 | D75: 135.2572199 | I75: 148.9699686 | J75: 140.9269467 | K75: 141.9054349
B76: 2016-03-31 | C76: 2016-03-10 | D76: 135.3845642 | I76: 148.9699686 | J76: 141.9832496 | K76: 141.9054349
B77: 2016-03-31 | C77: 2016-03-11 | D77: 140.8893416 | I77: 148.9699686 | J77: 143.04747 | K77: 141.9054349
B78: 2016-03-31 | C78: 2016-03-12 | D78: 141.2018437 | I78: 148.9699686 | J78: 144.1196671 | K78: 141.9054349
B79: 2016-03-31 | C79: 2016-03-13 | D79: 134.8546821 | I79: 148.9699686 | J79: 145.1999008 | K79: 141.9054349
B80: 2016-03-31 | C80: 2016-03-14 | D80: 142.9247989 | I80: 148.9699686 | J80: 146.2882312 | K80: 141.9054349
B81: 2016-03-31 | C81: 2016-03-15 | D81: 141.6863494 | I81: 148.9699686 | J81: 147.3847191 | K81: 141.9054349
B82: 2016-03-31 | C82: 2016-03-16 | D82: 142.6999999 | I82: 148.9699686 | J82: 148.4894256 | K82: 141.9054349
B83: 2016-03-31 | C83: 2016-03-17 | D83: 146.5716422 | I83: 148.9699686 | J83: 149.6024123 | K83: 141.9054349
B84: 2016-03-31 | C84: 2016-03-18 | D84: 151.9642133 | I84: 148.9699686 | J84: 150.7237413 | K84: 141.9054349
B85: 2016-03-31 | C85: 2016-03-19 | D85: 154.8841808 | I85: 148.9699686 | J85: 151.853475 | K85: 141.9054349
B86: 2016-03-31 | C86: 2016-03-20 | D86: 156.7642778 | I86: 148.9699686 | J86: 152.9916766 | K86: 141.9054349
B87: 2016-03-31 | C87: 2016-03-21 | D87: 164.4856692 | I87: 148.9699686 | J87: 154.1384095 | K87: 141.9054349
B88: 2016-03-31 | C88: 2016-03-22 | D88: 161.9581224 | I88: 148.9699686 | J88: 155.2937376 | K88: 141.9054349
B89: 2016-03-31 | C89: 2016-03-23 | D89: 159.3805011 | I89: 148.9699686 | J89: 156.4577253 | K89: 141.9054349
B90: 2016-03-31 | C90: 2016-03-24 | D90: 163.6594414 | I90: 148.9699686 | J90: 157.6304375 | K90: 141.9054349
B91: 2016-03-31 | C91: 2016-03-25 | D91: 168.1057656 | I91: 148.9699686 | J91: 158.8119397 | K91: 141.9054349
B92: 2016-03-31 | C92: 2016-03-26 | D92: 171.0436011 | I92: 148.9699686 | J92: 160.0022977 | K92: 141.9054349
B93: 2016-03-31 | C93: 2016-03-27 | D93: 171.5390593 | I93: 148.9699686 | J93: 161.2015779 | K93: 141.9054349
B94: 2016-03-31 | C94: 2016-03-28 | D94: 174.4146157 | I94: 148.9699686 | J94: 162.4098472 | K94: 141.9054349
B95: 2016-03-31 | C95: 2016-03-29 | D95: 166.7819102 | I95: 148.9699686 | J95: 163.627173 | K95: 141.9054349
B96: 2016-03-31 | C96: 2016-03-30 | D96: 167.6356087 | I96: 148.9699686 | J96: 164.8536231 | K96: 141.9054349
B97: 2016-03-31 | C97: 2016-03-31 | D97: 166.0892659 | I97: 148.9699686 | J97: 166.0892659 | K97: 148.9699686
B98: 2016-04-30 | C98: 2016-04-01 | D98: 159.2940723 | I98: 180.9877602 | J98: 166.9801114 | K98: 148.9699686
B99: 2016-04-30 | C99: 2016-04-02 | D99: 160.8841596 | I99: 180.9877602 | J99: 167.875735 | K99: 148.9699686
B100: 2016-04-30 | C100: 2016-04-03 | D100: 164.2508393 | I100: 180.9877602 | J100: 168.7761625 | K100: 148.9699686
B101: 2016-04-30 | C101: 2016-04-04 | D101: 159.0368726 | I101: 180.9877602 | J101: 169.6814196 | K101: 148.9699686
B102: 2016-04-30 | C102: 2016-04-05 | D102: 162.5318462 | I102: 180.9877602 | J102: 170.5915322 | K102: 148.9699686
B103: 2016-04-30 | C103: 2016-04-06 | D103: 164.6590622 | I103: 180.9877602 | J103: 171.5065262 | K103: 148.9699686
B104: 2016-04-30 | C104: 2016-04-07 | D104: 168.5475548 | I104: 180.9877602 | J104: 172.426428 | K104: 148.9699686
B105: 2016-04-30 | C105: 2016-04-08 | D105: 166.9454906 | I105: 180.9877602 | J105: 173.3512639 | K105: 148.9699686
B106: 2016-04-30 | C106: 2016-04-09 | D106: 165.1372599 | I106: 180.9877602 | J106: 174.2810602 | K106: 148.9699686
B107: 2016-04-30 | C107: 2016-04-10 | D107: 171.1920883 | I107: 180.9877602 | J107: 175.2158437 | K107: 148.9699686
B108: 2016-04-30 | C108: 2016-04-11 | D108: 177.6236623 | I108: 180.9877602 | J108: 176.155641 | K108: 148.9699686
B109: 2016-04-30 | C109: 2016-04-12 | D109: 187.7461463 | I109: 180.9877602 | J109: 177.100479 | K109: 148.9699686
B110: 2016-04-30 | C110: 2016-04-13 | D110: 183.2102644 | I110: 180.9877602 | J110: 178.0503848 | K110: 148.9699686
B111: 2016-04-30 | C111: 2016-04-14 | D111: 182.3225188 | I111: 180.9877602 | J111: 179.0053856 | K111: 148.9699686
B112: 2016-04-30 | C112: 2016-04-15 | D112: 181.8133221 | I112: 180.9877602 | J112: 179.9655087 | K112: 148.9699686
B113: 2016-04-30 | C113: 2016-04-16 | D113: 182.4119488 | I113: 180.9877602 | J113: 180.9307816 | K113: 148.9699686
B114: 2016-04-30 | C114: 2016-04-17 | D114: 184.352227 | I114: 180.9877602 | J114: 181.9012319 | K114: 148.9699686
B115: 2016-04-30 | C115: 2016-04-18 | D115: 179.20004 | I115: 180.9877602 | J115: 182.8768873 | K115: 148.9699686
B116: 2016-04-30 | C116: 2016-04-19 | D116: 179.4574004 | I116: 180.9877602 | J116: 183.8577758 | K116: 148.9699686
B117: 2016-04-30 | C117: 2016-04-20 | D117: 185.2734676 | I117: 180.9877602 | J117: 184.8439254 | K117: 148.9699686
B118: 2016-04-30 | C118: 2016-04-21 | D118: 190.7585671 | I118: 180.9877602 | J118: 185.8353644 | K118: 148.9699686
B119: 2016-04-30 | C119: 2016-04-22 | D119: 189.0684607 | I119: 180.9877602 | J119: 186.8321211 | K119: 148.9699686
B120: 2016-04-30 | C120: 2016-04-23 | D120: 190.3467423 | I120: 180.9877602 | J120: 187.8342241 | K120: 148.9699686
B121: 2016-04-30 | C121: 2016-04-24 | D121: 191.0386415 | I121: 180.9877602 | J121: 188.8417021 | K121: 148.9699686
B122: 2016-04-30 | C122: 2016-04-25 | D122: 195.4086791 | I122: 180.9877602 | J122: 189.8545838 | K122: 148.9699686
B123: 2016-04-30 | C123: 2016-04-26 | D123: 206.6972547 | I123: 180.9877602 | J123: 190.8728982 | K123: 148.9699686
B124: 2016-04-30 | C124: 2016-04-27 | D124: 204.5417261 | I124: 180.9877602 | J124: 191.8966746 | K124: 148.9699686
B125: 2016-04-30 | C125: 2016-04-28 | D125: 201.1323688 | I125: 180.9877602 | J125: 192.9259421 | K125: 148.9699686
B126: 2016-04-30 | C126: 2016-04-29 | D126: 199.7490534 | I126: 180.9877602 | J126: 193.9607302 | K126: 148.9699686
B127: 2016-04-30 | C127: 2016-04-30 | D127: 195.0010686 | I127: 180.9877602 | J127: 195.0010686 | K127: 180.9877602
B128: 2016-05-31 | C128: 2016-05-01 | D128: 200.7951552 | I128: 212.3135335 | J128: 196.4963341 | K128: 180.9877602
B129: 2016-05-31 | C129: 2016-05-02 | D129: 204.6408988 | I129: 212.3135335 | J129: 198.0030652 | K129: 180.9877602
B130: 2016-05-31 | C130: 2016-05-03 | D130: 207.0993989 | I130: 212.3135335 | J130: 199.5213498 | K130: 180.9877602
B131: 2016-05-31 | C131: 2016-05-04 | D131: 207.6583551 | I131: 212.3135335 | J131: 201.0512767 | K131: 180.9877602
B132: 2016-05-31 | C132: 2016-05-05 | D132: 205.5751916 | I132: 212.3135335 | J132: 202.592935 | K132: 180.9877602
B133: 2016-05-31 | C133: 2016-05-06 | D133: 208.8911457 | I133: 212.3135335 | J133: 204.1464148 | K133: 180.9877602
B134: 2016-05-31 | C134: 2016-05-07 | D134: 203.2425355 | I134: 212.3135335 | J134: 205.7118066 | K134: 180.9877602
B135: 2016-05-31 | C135: 2016-05-08 | D135: 206.0219372 | I135: =LOOKUP(B135,E:E,F:F) -> 212.3135335 | J135: =interpolate_look_up(C135,E:E,G:G) -> 207.2892018 | K135: =LOOKUP(C135,E:E,F:F) -> 180.9877602
B136: =EOMONTH(C136,0) -> 2016-05-31 | C136: 2016-05-09 | D136: 190.9079269 | I136: 212.3135335 | J136: 208.8786924 | K136: 180.9877602
B137: 2016-05-31 | C137: =C136+1 -> 2016-05-10 | D137: 199.3685254 | I137: 212.3135335 | J137: 210.4803713 | K137: 180.9877602
B138: 2016-05-31 | C138: 2016-05-11 | D138: 195.3663489 | I138: 212.3135335 | J138: 212.0943318 | K138: 180.9877602
B139: 2016-05-31 | C139: 2016-05-12 | D139: 206.3002349 | I139: 212.3135335 | J139: 213.7206681 | K139: 180.9877602
B140: 2016-05-31 | C140: 2016-05-13 | D140: 212.4212476 | I140: 212.3135335 | J140: 215.3594751 | K140: 180.9877602
B141: 2016-05-31 | C141: 2016-05-14 | D141: 217.8253351 | I141: 212.3135335 | J141: 217.0108485 | K141: 180.9877602
B142: 2016-05-31 | C142: 2016-05-15 | D142: 215.2166403 | I142: 212.3135335 | J142: 218.6748846 | K142: 180.9877602
B143: 2016-05-31 | C143: 2016-05-16 | D143: 212.302714 | I143: 212.3135335 | J143: 220.3516805 | K143: 180.9877602
B144: 2016-05-31 | C144: 2016-05-17 | D144: 213.1350351 | I144: 212.3135335 | J144: 222.0413341 | K144: 180.9877602
B145: 2016-05-31 | C145: 2016-05-18 | D145: 214.9517695 | I145: 212.3135335 | J145: 223.7439439 | K145: 180.9877602
B146: 2016-05-31 | C146: 2016-05-19 | D146: 211.748323 | I146: 212.3135335 | J146: 225.4596093 | K146: 180.9877602
B147: 2016-05-31 | C147: 2016-05-20 | D147: 204.1259831 | I147: 212.3135335 | J147: 227.1884303 | K147: 180.9877602
B148: 2016-05-31 | C148: 2016-05-21 | D148: 206.796261 | I148: 212.3135335 | J148: 228.930508 | K148: 180.9877602
B149: 2016-05-31 | C149: 2016-05-22 | D149: 205.9467507 | I149: 212.3135335 | J149: 230.6859439 | K149: 180.9877602
B150: 2016-05-31 | C150: 2016-05-23 | D150: 206.537648 | I150: 212.3135335 | J150: 232.4548404 | K150: 180.9877602
B151: 2016-05-31 | C151: 2016-05-24 | D151: 209.0930067 | I151: 212.3135335 | J151: 234.2373008 | K151: 180.9877602
B152: 2016-05-31 | C152: 2016-05-25 | D152: 214.2491794 | I152: 212.3135335 | J152: 236.0334291 | K152: 180.9877602
B153: 2016-05-31 | C153: 2016-05-26 | D153: 217.565064 | I153: 212.3135335 | J153: 237.8433301 | K153: 180.9877602
B154: 2016-05-31 | C154: 2016-05-27 | D154: 227.2767738 | I154: 212.3135335 | J154: 239.6671093 | K154: 180.9877602
B155: 2016-05-31 | C155: 2016-05-28 | D155: 229.0881785 | I155: 212.3135335 | J155: 241.5048733 | K155: 180.9877602
B156: 2016-05-31 | C156: 2016-05-29 | D156: 239.2161854 | I156: 212.3135335 | J156: 243.3567293 | K156: 180.9877602
B157: 2016-05-31 | C157: 2016-05-30 | D157: 241.2526398 | I157: 212.3135335 | J157: 245.2227852 | K157: 180.9877602
B158: 2016-05-31 | C158: 2016-05-31 | D158: 247.10315 | I158: 212.3135335 | J158: 247.10315 | K158: 212.3135335
B159: 2016-06-30 | C159: 2016-06-01 | D159: 236.2247579 | I159: 226.9641314 | J159: 245.6798503 | K159: 212.3135335
B160: 2016-06-30 | C160: 2016-06-02 | D160: 235.354378 | I160: 226.9641314 | J160: 244.2647488 | K160: 212.3135335
B161: 2016-06-30 | C161: 2016-06-03 | D161: 228.9358804 | I161: 226.9641314 | J161: 242.8577981 | K161: 212.3135335
B162: 2016-06-30 | C162: 2016-06-04 | D162: 235.7774871 | I162: 226.9641314 | J162: 241.4589514 | K162: 212.3135335
B163: 2016-06-30 | C163: 2016-06-05 | D163: 238.911271 | I163: 226.9641314 | J163: 240.068162 | K163: 212.3135335
B164: 2016-06-30 | C164: 2016-06-06 | D164: 244.6450589 | I164: 226.9641314 | J164: 238.6853834 | K164: 212.3135335
B165: 2016-06-30 | C165: 2016-06-07 | D165: 235.6890438 | I165: 226.9641314 | J165: 237.3105696 | K165: 212.3135335
B166: 2016-06-30 | C166: 2016-06-08 | D166: 231.1167044 | I166: 226.9641314 | J166: 235.9436746 | K166: 212.3135335
B167: 2016-06-30 | C167: 2016-06-09 | D167: 227.5112094 | I167: 226.9641314 | J167: 234.5846528 | K167: 212.3135335
B168: 2016-06-30 | C168: 2016-06-10 | D168: 225.5496168 | I168: 226.9641314 | J168: 233.2334589 | K168: 212.3135335
B169: 2016-06-30 | C169: 2016-06-11 | D169: 224.7792984 | I169: 226.9641314 | J169: 231.8900479 | K169: 212.3135335
B170: 2016-06-30 | C170: 2016-06-12 | D170: 241.1440914 | I170: 226.9641314 | J170: 230.5543747 | K170: 212.3135335
B171: 2016-06-30 | C171: 2016-06-13 | D171: 234.5373335 | I171: 226.9641314 | J171: 229.226395 | K171: 212.3135335
B172: 2016-06-30 | C172: 2016-06-14 | D172: 231.7207091 | I172: 226.9641314 | J172: 227.9060644 | K172: 212.3135335
B173: 2016-06-30 | C173: 2016-06-15 | D173: 219.4185773 | I173: 226.9641314 | J173: 226.5933388 | K173: 212.3135335
B174: 2016-06-30 | C174: 2016-06-16 | D174: 224.4432438 | I174: 226.9641314 | J174: 225.2881744 | K174: 212.3135335
B175: 2016-06-30 | C175: 2016-06-17 | D175: 223.656959 | I175: 226.9641314 | J175: 223.9905277 | K175: 212.3135335
B176: 2016-06-30 | C176: 2016-06-18 | D176: 227.7386993 | I176: 226.9641314 | J176: 222.7003554 | K176: 212.3135335
B177: 2016-06-30 | C177: 2016-06-19 | D177: 224.3904725 | I177: 226.9641314 | J177: 221.4176144 | K177: 212.3135335
B178: 2016-06-30 | C178: 2016-06-20 | D178: 216.2536018 | I178: 226.9641314 | J178: 220.1422619 | K178: 212.3135335
B179: 2016-06-30 | C179: 2016-06-21 | D179: 227.5694732 | I179: 226.9641314 | J179: 218.8742553 | K179: 212.3135335
B180: 2016-06-30 | C180: 2016-06-22 | D180: 231.7519321 | I180: 226.9641314 | J180: 217.6135524 | K180: 212.3135335
B181: 2016-06-30 | C181: 2016-06-23 | D181: 231.5588346 | I181: 226.9641314 | J181: 216.3601111 | K181: 212.3135335
B182: 2016-06-30 | C182: 2016-06-24 | D182: 225.5336692 | I182: 226.9641314 | J182: 215.1138895 | K182: 212.3135335
B183: 2016-06-30 | C183: 2016-06-25 | D183: 220.7663424 | I183: 226.9641314 | J183: 213.8748461 | K183: 212.3135335
B184: 2016-06-30 | C184: 2016-06-26 | D184: 217.7646947 | I184: 226.9641314 | J184: 212.6429395 | K184: 212.3135335
B185: 2016-06-30 | C185: 2016-06-27 | D185: 218.7439777 | I185: 226.9641314 | J185: 211.4181286 | K185: 212.3135335
B186: 2016-06-30 | C186: 2016-06-28 | D186: 207.8448919 | I186: 226.9641314 | J186: 210.2003726 | K186: 212.3135335
B187: 2016-06-30 | C187: 2016-06-29 | D187: 211.8058693 | I187: 226.9641314 | J187: 208.9896307 | K187: 212.3135335
B188: 2016-06-30 | C188: 2016-06-30 | D188: 207.7858627 | I188: 226.9641314 | J188: 207.7858627 | K188: 226.9641314
B189: 2016-07-31 | C189: 2016-07-01 | D189: 219.7703411 | I189: 215.3066646 | J189: 207.379179 | K189: 226.9641314
B190: 2016-07-31 | C190: 2016-07-02 | D190: 227.7716832 | I190: 215.3066646 | J190: 206.9732913 | K190: 226.9641314
B191: 2016-07-31 | C191: 2016-07-03 | D191: 222.8358361 | I191: 215.3066646 | J191: 206.568198 | K191: 226.9641314
B192: 2016-07-31 | C192: 2016-07-04 | D192: 226.719172 | I192: 215.3066646 | J192: 206.1638975 | K192: 226.9641314
B193: 2016-07-31 | C193: 2016-07-05 | D193: 222.8232788 | I193: 215.3066646 | J193: 205.7603884 | K193: 226.9641314
B194: 2016-07-31 | C194: 2016-07-06 | D194: 218.1105081 | I194: 215.3066646 | J194: 205.357669 | K194: 226.9641314
B195: 2016-07-31 | C195: 2016-07-07 | D195: 222.5991443 | I195: 215.3066646 | J195: 204.9557379 | K195: 226.9641314
B196: 2016-07-31 | C196: 2016-07-08 | D196: 223.4334575 | I196: 215.3066646 | J196: 204.5545934 | K196: 226.9641314
B197: 2016-07-31 | C197: 2016-07-09 | D197: 227.2063222 | I197: 215.3066646 | J197: 204.154234 | K197: 226.9641314
B198: 2016-07-31 | C198: 2016-07-10 | D198: 225.4590669 | I198: 215.3066646 | J198: 203.7546582 | K198: 226.9641314
B199: 2016-07-31 | C199: 2016-07-11 | D199: 235.851541 | I199: =LOOKUP(B199,E:E,F:F) -> 215.3066646 | J199: =interpolate_look_up(C199,E:E,G:G) -> 203.3558645 | K199: =LOOKUP(C199,E:E,F:F) -> 226.9641314
B200: =EOMONTH(C200,0) -> 2016-07-31 | C200: 2016-07-12 | D200: 231.0682658 | I200: 215.3066646 | J200: 202.9578513 | K200: 226.9641314
B201: 2016-07-31 | C201: =C200+1 -> 2016-07-13 | D201: 222.9296579 | I201: 215.3066646 | J201: 202.5606172 | K201: 226.9641314
... 11 more rows
